Body Name,Body,Service Division Label,Service Division Code,Organisational Unit,Expenditure Category,Expenditure Code,CIPFA detailed expediture type,CIPFA detailed expediture code,Narrative,Date,Transaction number,Net Amount,Capital and Revenue,Supplier Name,Supplier ID
Chorley Borough Council,http://statistics.data.gov.uk/id/local-authority/30UE,Unapportionable Central OHeads,1009,Governance,Mayoral Hospitality,40123,Expenses,5030,Buffet for guest at the Mayor`s Civic Dinner on 17th May 2013,22/05/2013,88666,"2,400.00",Revenue,22 Catering,59519
Chorley Borough Council,http://statistics.data.gov.uk/id/local-authority/30UE,Unapportionable Central OHeads,1009,Governance,Mayoral Hospitality,40123,Expenses,5030,Buffet for attendants,22/05/2013,88666,48.00,Revenue,22 Catering,59519
Chorley Borough Council,http://statistics.data.gov.uk/id/local-authority/30UE,Democratic Represent and  Mgnt,1007,Streetscene & Leisure Contracts,External Contractor - Trust or Charity,50008,Private Contractors,5042,"Monthly Management Fee for ASLC/CGSC/Brinscall, and Project Management Costs",17/05/2013,88611,"32,800.60",Revenue,Active Nation UK Ltd,17144
Chorley Borough Council,http://statistics.data.gov.uk/id/local-authority/30UE,Community Development,1097,Governance,Grants To Other Organisations,40127,Grants and Subscriptions,5031,Community Grant Fund 2013/14,29/05/2013,88803,250.00,Revenue,Adlington & District Carnival Committee Ltd,59773
Chorley Borough Council,http://statistics.data.gov.uk/id/local-authority/30UE,Business Support,1095,Governance,Burglar Alarms & Security Systems,20075,Fixtures and Fittings,5010,Maintenance of the Access Control System period 23-05-13 to 22-05-14,17/05/2013,88485,568.60,Revenue,ADT Fire & Security,16645
Chorley Borough Council,http://statistics.data.gov.uk/id/local-authority/30UE,Business Support,1095,Governance,Burglar Alarms & Security Systems,20075,Fixtures and Fittings,5010,"The Annexe, Gillibrand Street - Maintenance and monitoring of the intruder alarm system",17/05/2013,88487,288.96,Revenue,ADT Fire & Security,16645
Chorley Borough Council,http://statistics.data.gov.uk/id/local-authority/30UE,Capital,Capital,Housing,Grants,3002,Capital Expenditure,Capital,ADDRESS REDACTED,22/05/2013,88638,"4,329.00",Capital,AJS Joinery and Building Contractor,18195
Chorley Borough Council,http://statistics.data.gov.uk/id/local-authority/30UE,Economic Development,1096,Economic Development,Grants To Other Organisations,40127,Grants and Subscriptions,5031,Starting in business grant,15/05/2013,88415,304.00,Revenue,NAME REDACTED,59235
Chorley Borough Council,http://statistics.data.gov.uk/id/local-authority/30UE,Economic Development,1096,Economic Development,Grants To Other Organisations,40127,Grants and Subscriptions,5031,Starting in business grant - Capital Expenditure,24/05/2013,88720,328.80,Revenue,NAME REDACTED,59235
Chorley Borough Council,http://statistics.data.gov.uk/id/local-authority/30UE,Unapportionable Central OHeads,1009,Governance,Uniforms,40039,"Clothing, Uniforms and Laundry",5025,Staff uniforms,31/05/2013,88836,417.77,Revenue,Alexandra,21752
Chorley Borough Council,http://statistics.data.gov.uk/id/local-authority/30UE,Unapportionable Central OHeads,1009,"Customer, ICT & Transactional",Compensation Payments,40152,Miscellaneous Expenses,5034,CHBC Scheme,22/05/2013,88450,43.01,Revenue,Allpay Net Ltd,17242
Chorley Borough Council,http://statistics.data.gov.uk/id/local-authority/30UE,Unapportionable Central OHeads,1009,"Customer, ICT & Transactional",Compensation Payments,40152,Miscellaneous Expenses,5034,CHBC Scheme,22/05/2013,88450,"1,966.49",Revenue,Allpay Net Ltd,17242
Chorley Borough Council,http://statistics.data.gov.uk/id/local-authority/30UE,Service Management & Support,1009,Shared Service Arrangement,Car Leasing Payment,14100,Direct Employee Expenses,5001,Vehicle Leasing,22/05/2013,88718,"2,336.42",Revenue,Alphabet (Uk) Fleet Management Ltd,16651
Chorley Borough Council,http://statistics.data.gov.uk/id/local-authority/30UE,Corporate Management,1008,Shared Service Arrangement,Car Leasing Payment,14100,Direct Employee Expenses,5001,Vehicle Leasing,22/05/2013,88718,"2,497.50",Revenue,Alphabet (Uk) Fleet Management Ltd,16651
Chorley Borough Council,http://statistics.data.gov.uk/id/local-authority/30UE,Economic Development,1096,Shared Service Arrangement,Car Leasing Payment,14100,Direct Employee Expenses,5001,Vehicle Leasing,22/05/2013,88718,"3,219.90",Revenue,Alphabet (Uk) Fleet Management Ltd,16651
Chorley Borough Council,http://statistics.data.gov.uk/id/local-authority/30UE,Economic Development,1096,Economic Development,Cleaning Materials,40019,"Equipment, Furniture & Materia",5023,Supply items as per email (to follow).,31/05/2013,88843,463.34,Revenue,Amtoll Ltd,21738
Chorley Borough Council,http://statistics.data.gov.uk/id/local-authority/30UE,Economic Development,1096,Economic Development,Grants To Other Organisations,40127,Grants and Subscriptions,5031,Starting in business grant - Capital Expenditure,24/05/2013,88781,750.00,Revenue,NAME REDACTED,59685
Chorley Borough Council,http://statistics.data.gov.uk/id/local-authority/30UE,Homelessness,1075,Housing,Rental Bond Scheme,40241,Miscellaneous Expenses,5034,Rental Bond Scheme,08/05/2013,88373,375.00,Revenue,NAME REDACTED,59484
Chorley Borough Council,http://statistics.data.gov.uk/id/local-authority/30UE,Economic Development,1096,Economic Development,Grants To Other Organisations,40127,Grants and Subscriptions,5031,business grant,08/05/2013,88354,500.00,Revenue,NAME REDACTED,57327
Chorley Borough Council,http://statistics.data.gov.uk/id/local-authority/30UE,Service Management & Support,1009,Streetscene & Leisure Contracts,Protective Clothing,40040,"Clothing, Uniforms and Laundry",5025,Bomber Jacket,01/05/2013,87832,309.78,Revenue,Arco Limited,17458
Chorley Borough Council,http://statistics.data.gov.uk/id/local-authority/30UE,Homelessness,1075,Housing,Tools & Equipment - Purchase,40003,"Equipment, Furniture & Materia",5023, 423/7233 - Morphy Richards KWS1128HQ-F2UC Convection Mini Oven - Silver,22/05/2013,88552,399.96,Revenue,Argos Business Solutions,16213
Chorley Borough Council,http://statistics.data.gov.uk/id/local-authority/30UE,Homelessness,1075,Housing,Tools & Equipment - Purchase,40003,"Equipment, Furniture & Materia",5023, 842/5687 - Argos Value Range Plastic Chopping Boards - Pack of 2 .,22/05/2013,88552,74.70,Revenue,Argos Business Solutions,16213
Chorley Borough Council,http://statistics.data.gov.uk/id/local-authority/30UE,Homelessness,1075,Housing,Tools & Equipment - Purchase,40003,"Equipment, Furniture & Materia",5023,901/3548 - ColourMatch 30 Litre Push Top Kitchen Bin - Poppy Red.,22/05/2013,88552,19.12,Revenue,Argos Business Solutions,16213
Chorley Borough Council,http://statistics.data.gov.uk/id/local-authority/30UE,Parking Services,1066,Streetscene & Leisure Contracts,Tools & Equipment - Maintenance,40005,"Equipment, Furniture & Materia",5023,Carryout repairs to height barrier on Friday St car park as required,01/05/2013,88282,295.00,Revenue,Ark Welding Ltd,18154
Chorley Borough Council,http://statistics.data.gov.uk/id/local-authority/30UE,Public Transport,1067,Streetscene & Leisure Contracts,Bus Shelters -Maintenance,20062,Grounds Maintenance Costs,5013,Carryout refurbisment of bus shelters as per Chorley Council specification ,01/05/2013,88284,"6,090.00",Revenue,Ark Welding Ltd,18154
Chorley Borough Council,http://statistics.data.gov.uk/id/local-authority/30UE,Public Transport,1067,Streetscene & Leisure Contracts,Bus Shelters -Maintenance,20062,Grounds Maintenance Costs,5013,Carryout refurbisment of bus shelters as per Chorley Council specification ,01/05/2013,88285,"3,510.00",Revenue,Ark Welding Ltd,18154
Chorley Borough Council,http://statistics.data.gov.uk/id/local-authority/30UE,Corporate Management,1008,Streetscene & Leisure Contracts,External Contractor,40198,Miscellaneous Expenses,5034,120 M 4ft fencing with a 3 m double gate,17/05/2013,88571,"2,673.83",Revenue,Ark Welding Ltd,18154
Chorley Borough Council,http://statistics.data.gov.uk/id/local-authority/30UE,Service Management & Support,1009,Streetscene & Leisure Contracts,Supplies-Grounds Maintenance,40025,"Equipment, Furniture & Materia",5023,220 metres of 4ft metal fence,31/05/2013,88869,"3,974.91",Revenue,Ark Welding Ltd,18154
Chorley Borough Council,http://statistics.data.gov.uk/id/local-authority/30UE,Central Support Services,1009,Shared Service Arrangement,Car Leasing Payment,14100,Direct Employee Expenses,5001,Vehicle Leasing,22/05/2013,88303,"1,225.48",Revenue,Arnold Clark Finance Ltd,20685
Chorley Borough Council,http://statistics.data.gov.uk/id/local-authority/30UE,Central Support Services,1009,Shared Service Arrangement,Car Leasing Payment,14100,Direct Employee Expenses,5001,Vehicle Leasing,22/05/2013,88303,130.24,Revenue,Arnold Clark Finance Ltd,20685
Chorley Borough Council,http://statistics.data.gov.uk/id/local-authority/30UE,Control Accounts,Control,Shared Service Arrangement,Manual Control Account,1,Balance Sheet,Balance,Vehicle Leasing,22/05/2013,88303,-130.24,Revenue,Arnold Clark Finance Ltd,20685
Chorley Borough Council,http://statistics.data.gov.uk/id/local-authority/30UE,Corporate Management,1008,Shared Service Arrangement,Car Leasing Payment,14100,Direct Employee Expenses,5001,Vehicle Leasing,22/05/2013,88710,"3,264.00",Revenue,Arnold Clark Finance Ltd,20685
Chorley Borough Council,http://statistics.data.gov.uk/id/local-authority/30UE,Corporate Management,1008,Shared Service Arrangement,Car Leasing Payment,14100,Direct Employee Expenses,5001,Vehicle Leasing,22/05/2013,88710,283.31,Revenue,Arnold Clark Finance Ltd,20685
Chorley Borough Council,http://statistics.data.gov.uk/id/local-authority/30UE,Control Accounts,Control,Shared Service Arrangement,Manual Control Account,1,Balance Sheet,Balance,Vehicle Leasing,22/05/2013,88710,-283.31,Revenue,Arnold Clark Finance Ltd,20685
Chorley Borough Council,http://statistics.data.gov.uk/id/local-authority/30UE,Unapportionable Central OHeads,1009,Shared Service Arrangement,Car Leasing Payment,14100,Direct Employee Expenses,5001,Vehicle Leasing,22/05/2013,88711,"2,880.00",Revenue,Arnold Clark Finance Ltd,20685
Chorley Borough Council,http://statistics.data.gov.uk/id/local-authority/30UE,Corporate Management,1008,Shared Service Arrangement,Car Leasing Payment,14100,Direct Employee Expenses,5001,Vehicle Leasing,22/05/2013,88713,"3,360.00",Revenue,Arnold Clark Finance Ltd,20685
Chorley Borough Council,http://statistics.data.gov.uk/id/local-authority/30UE,Building Control,1090,Shared Service Arrangement,Car Leasing Payment,14100,Direct Employee Expenses,5001,Vehicle Leasing,22/05/2013,88714,535.67,Revenue,Arnold Clark Finance Ltd,20685
Chorley Borough Council,http://statistics.data.gov.uk/id/local-authority/30UE,Development Control,1091,Shared Service Arrangement,Car Leasing Payment,14100,Direct Employee Expenses,5001,Vehicle Leasing,22/05/2013,88714,613.28,Revenue,Arnold Clark Finance Ltd,20685
Chorley Borough Council,http://statistics.data.gov.uk/id/local-authority/30UE,Corporate Management,1008,Shared Service Arrangement,Car Leasing Payment,14100,Direct Employee Expenses,5001,Vehicle Leasing,22/05/2013,88715,"2,772.00",Revenue,Arnold Clark Finance Ltd,20685
Chorley Borough Council,http://statistics.data.gov.uk/id/local-authority/30UE,Unapportionable Central OHeads,1009,Shared Service Arrangement,Car Leasing Payment,14100,Direct Employee Expenses,5001,Vehicle Leasing,22/05/2013,88740,"3,504.00",Revenue,Arnold Clark Finance Ltd,20685
Chorley Borough Council,http://statistics.data.gov.uk/id/local-authority/30UE,Capital,Capital,"Customer, ICT & Transactional",Consultants Fees,3025,Capital Expenditure,Capital,Milestone 2 - delivery of solution to System Specification for Rossendale Borough Council,24/05/2013,88417,"23,750.00",Capital,Asidua GB Ltd,22000
Chorley Borough Council,http://statistics.data.gov.uk/id/local-authority/30UE,Capital,Capital,"Customer, ICT & Transactional",Consultants Fees,3025,Capital Expenditure,Capital,Rossendale Hosting of Muni Track - NWIEP Funding,24/05/2013,88418,990.00,Capital,Asidua GB Ltd,22000
Chorley Borough Council,http://statistics.data.gov.uk/id/local-authority/30UE,Community Development,1097,Policy & Performance,Core Funding Grants,40133,Grants and Subscriptions,5031,Cored Funding,10/05/2013,88367,"1,340.00",Revenue,Aspire - Clayton Brook,59483
Chorley Borough Council,http://statistics.data.gov.uk/id/local-authority/30UE,Corporate Management,1008,Health Environment & Neighbourhoods,Taxi Testing & Vehicle Safety Report,40234,Services,5027,MOT,24/05/2013,88482,603.35,Revenue,Autocentre LTD,21651
Chorley Borough Council,http://statistics.data.gov.uk/id/local-authority/30UE,Corporate Management,1008,Health Environment & Neighbourhoods,Taxi Testing & Vehicle Safety Report,40234,Services,5027,MOT,24/05/2013,88482,91.63,Revenue,Autocentre LTD,21651
Chorley Borough Council,http://statistics.data.gov.uk/id/local-authority/30UE,Corporate Management,1008,Chief Executives Office,Burial Exps - P H Act 1984,40209,Miscellaneous Expenses,5034,For the interment of the late John Charles Wadsworth (paupers funeral),10/05/2013,88286,700.00,Revenue,B Livesey Limited,17943
Chorley Borough Council,http://statistics.data.gov.uk/id/local-authority/30UE,Service Management & Support,1009,Streetscene & Leisure Contracts,Hire Of Transport,30028,Contrct Hire & Operating Lease,5018,Hire of 3 x JohnDeere X748 for a 12 week period at price agreed,22/05/2013,88661,"1,200.00",Revenue,Balmers Garden Machinery,17075
Chorley Borough Council,http://statistics.data.gov.uk/id/local-authority/30UE,Service Management & Support,1009,Streetscene & Leisure Contracts,Hire Of Transport,30028,Contrct Hire & Operating Lease,5018,Hire of 2 x John Deere 1445 for 12 week period at price agreed,22/05/2013,88661,"1,600.00",Revenue,Balmers Garden Machinery,17075
Chorley Borough Council,http://statistics.data.gov.uk/id/local-authority/30UE,Service Management & Support,1009,Streetscene & Leisure Contracts,Tools & Equipment - Maintenance,40005,"Equipment, Furniture & Materia",5023,Carryout full service and repairs to Timberwolf chipper as required. ,22/05/2013,88686,931.96,Revenue,Balmers Garden Machinery,17075
Chorley Borough Council,http://statistics.data.gov.uk/id/local-authority/30UE,Unapportionable Central OHeads,1009,"Customer, ICT & Transactional",Consultants` Fees,40077,Services,5027,"Support Services as agreed with Customer Transactional and ICT Services.",15/05/2013,88537,"1,200.00",Revenue,REDACTED PERSONAL DATA,22238
Chorley Borough Council,http://statistics.data.gov.uk/id/local-authority/30UE,Democratic Represent and  Mgnt,1007,Health Environment & Neighbourhoods,Sports Development Initiatives,40186,Miscellaneous Expenses,5034,Purchase of Sports equipment for Active Generation activities,15/05/2013,88524,267.00,Revenue,Bishop Sports And Leisure,17835
Chorley Borough Council,http://statistics.data.gov.uk/id/local-authority/30UE,Unapportionable Central OHeads,1009,Shared Service Arrangement,External Contractor,40198,Miscellaneous Expenses,5034,Provision of payroll Services 2012/2013,08/05/2013,88405,"2,114.24",Revenue,Blackpool Borough Council,16518
Chorley Borough Council,http://statistics.data.gov.uk/id/local-authority/30UE,Unapportionable Central OHeads,1009,Shared Service Arrangement,External Contractor,40198,Miscellaneous Expenses,5034,Postage,08/05/2013,88405,155.50,Revenue,Blackpool Borough Council,16518
Chorley Borough Council,http://statistics.data.gov.uk/id/local-authority/30UE,Control Accounts,Control,Shared Service Arrangement,General Balances,100,Balance Sheet,Balance,Ad Hoc Charges,08/05/2013,88405,280.00,Revenue,Blackpool Borough Council,16518
Chorley Borough Council,http://statistics.data.gov.uk/id/local-authority/30UE,Corporate Management,1008,Streetscene & Leisure Contracts,Publicity - Advertising,40157,Miscellaneous Expenses,5034,Costs as agreed for Waste and Recycling Mobile phone Application.,22/05/2013,88458,"1,000.00",Revenue,Blackpool Borough Council,16518
Chorley Borough Council,http://statistics.data.gov.uk/id/local-authority/30UE,Unapportionable Central OHeads,1009,Governance,Refreshments,40036,Catering,5024,"Tea, coffee, milk, sugar for the machines at Union Street",17/05/2013,88338,318.26,Revenue,Bramblethorpe Ltd,20217
Chorley Borough Council,http://statistics.data.gov.uk/id/local-authority/30UE,Unapportionable Central OHeads,1009,Governance,Refreshments,40036,Catering,5024,plastic stirrers,17/05/2013,88338,17.00,Revenue,Bramblethorpe Ltd,20217
Chorley Borough Council,http://statistics.data.gov.uk/id/local-authority/30UE,Economic Development,1096,Economic Development,Consultants` Fees,40077,Services,5027,Provision of an Inward Investment Plan ,31/05/2013,88842,"11,434.00",Revenue,Breeze Strategy Limited,57864
Chorley Borough Council,http://statistics.data.gov.uk/id/local-authority/30UE,Homelessness,1075,Chief Executives Office,Gas,20014,Energy Costs,5006,Cotswold House,24/05/2013,88735,"1,359.20",Revenue,British Gas Business,22242
Chorley Borough Council,http://statistics.data.gov.uk/id/local-authority/30UE,Community Development,1097,Chief Executives Office,Gas,20014,Energy Costs,5006,Accounting Adv Svcs,24/05/2013,88735,63.95,Revenue,British Gas Business,22242
Chorley Borough Council,http://statistics.data.gov.uk/id/local-authority/30UE,Unapportionable Central OHeads,1009,Chief Executives Office,Gas,20014,Energy Costs,5006,Bengal Street,24/05/2013,88735,199.36,Revenue,British Gas Business,22242
Chorley Borough Council,http://statistics.data.gov.uk/id/local-authority/30UE,Democratic Represent and  Mgnt,1007,Chief Executives Office,Gas,20014,Energy Costs,5006,Clayton Brook Comm Ctr,24/05/2013,88735,213.76,Revenue,British Gas Business,22242
Chorley Borough Council,http://statistics.data.gov.uk/id/local-authority/30UE,Democratic Represent and  Mgnt,1007,Chief Executives Office,Gas,20014,Energy Costs,5006,Astley Hall Farm Hse,24/05/2013,88735,118.69,Revenue,British Gas Business,22242
Chorley Borough Council,http://statistics.data.gov.uk/id/local-authority/30UE,Unapportionable Central OHeads,1009,Chief Executives Office,Gas,20014,Energy Costs,5006,Union Street Offices,24/05/2013,88735,"1,363.31",Revenue,British Gas Business,22242
Chorley Borough Council,http://statistics.data.gov.uk/id/local-authority/30UE,Democratic Represent and  Mgnt,1007,Chief Executives Office,Gas,20014,Energy Costs,5006,Yarrow Valley Park,24/05/2013,88735,105.32,Revenue,British Gas Business,22242
Chorley Borough Council,http://statistics.data.gov.uk/id/local-authority/30UE,Democratic Represent and  Mgnt,1007,Chief Executives Office,Gas,20014,Energy Costs,5006,Astley Cottage,24/05/2013,88735,175.64,Revenue,British Gas Business,22242
Chorley Borough Council,http://statistics.data.gov.uk/id/local-authority/30UE,Democratic Represent and  Mgnt,1007,Chief Executives Office,Gas,20014,Energy Costs,5006,Astley Vill comm Ctr,24/05/2013,88735,317.68,Revenue,British Gas Business,22242
Chorley Borough Council,http://statistics.data.gov.uk/id/local-authority/30UE,Democratic Represent and  Mgnt,1007,Chief Executives Office,Gas,20014,Energy Costs,5006,Eaves Green Comm Ctrr,24/05/2013,88735,300.36,Revenue,British Gas Business,22242
Chorley Borough Council,http://statistics.data.gov.uk/id/local-authority/30UE,Democratic Represent and  Mgnt,1007,Chief Executives Office,Gas,20014,Energy Costs,5006,Coach House,24/05/2013,88735,434.85,Revenue,British Gas Business,22242
Chorley Borough Council,http://statistics.data.gov.uk/id/local-authority/30UE,Unapportionable Central OHeads,1009,Chief Executives Office,Gas,20014,Energy Costs,5006,Town Hall,24/05/2013,88735,"1,383.02",Revenue,British Gas Business,22242
Chorley Borough Council,http://statistics.data.gov.uk/id/local-authority/30UE,Democratic Represent and  Mgnt,1007,Chief Executives Office,Gas,20014,Energy Costs,5006,Astley Hall,24/05/2013,88735,"1,647.65",Revenue,British Gas Business,22242
Chorley Borough Council,http://statistics.data.gov.uk/id/local-authority/30UE,Democratic Represent and  Mgnt,1007,"Customer, ICT & Transactional",Telephones - Calls,40084,Communication and Computing,5028,Useage Charges,08/05/2013,88352,94.13,Revenue,British Telecommunications Plc,17131
Chorley Borough Council,http://statistics.data.gov.uk/id/local-authority/30UE,Democratic Represent and  Mgnt,1007,"Customer, ICT & Transactional",Telephones - Rentals,40083,Communication and Computing,5028,One off Charges,08/05/2013,88352,112.00,Revenue,British Telecommunications Plc,17131
Chorley Borough Council,http://statistics.data.gov.uk/id/local-authority/30UE,Democratic Represent and  Mgnt,1007,"Customer, ICT & Transactional",Telephones - Rentals,40083,Communication and Computing,5028,Recurring Charges,08/05/2013,88352,837.04,Revenue,British Telecommunications Plc,17131
Chorley Borough Council,http://statistics.data.gov.uk/id/local-authority/30UE,Service Management & Support,1009,Streetscene & Leisure Contracts,Supplies-Grounds Maintenance,40025,"Equipment, Furniture & Materia",5023,Supply pallet of 50 bags of 25kg bags of C2 fast setting mortar to be deliveredto Bengal St,10/05/2013,88497,417.50,Revenue,C & W BERRY LIMITED,18180
Chorley Borough Council,http://statistics.data.gov.uk/id/local-authority/30UE,Unapportionable Central OHeads,1009,Streetscene & Leisure Contracts,Refuse Collection,20037,Cleaning and Domestic Supplies,5012,Emotying of interceptor tank and cleaning of gullies at Bengal St ,22/05/2013,88428,300.00,Revenue,C J Lyon,16579
Chorley Borough Council,http://statistics.data.gov.uk/id/local-authority/30UE,Service Management & Support,1009,Streetscene & Leisure Contracts,External Contractor,40198,Miscellaneous Expenses,5034,Carryout investigations at Limbrick playing fields as requested and jet toilet block ,15/05/2013,88525,270.00,Revenue,C J Lyon,16579
Chorley Borough Council,http://statistics.data.gov.uk/id/local-authority/30UE,Unapportionable Central OHeads,1009,Streetscene & Leisure Contracts,Refuse Collection,20037,Cleaning and Domestic Supplies,5012,Emotying of interceptor tank and cleaning of gullies at Bengal St ,17/05/2013,88613,300.00,Revenue,C J Lyon,16579
Chorley Borough Council,http://statistics.data.gov.uk/id/local-authority/30UE,Service Management & Support,1009,Streetscene & Leisure Contracts,Vehicle Maintenance,30045,Direct Transport Costs,5016,Investigate gear box fault on DK57KVT find faulty gears send for repair refit ,10/05/2013,88452,"2,140.70",Revenue,C P Davidson & Sons Ltd,21093
Chorley Borough Council,http://statistics.data.gov.uk/id/local-authority/30UE,Service Management & Support,1009,Streetscene & Leisure Contracts,Vehicle Maintenance,30045,Direct Transport Costs,5016,Supply and fit new clutch in DK56JWL as required,10/05/2013,88455,561.02,Revenue,C P Davidson & Sons Ltd,21093
Chorley Borough Council,http://statistics.data.gov.uk/id/local-authority/30UE,Service Management & Support,1009,Streetscene & Leisure Contracts,Vehicle Maintenance,30045,Direct Transport Costs,5016,Replace broken indicator stalk on DK57KVT as required,10/05/2013,88456,268.70,Revenue,C P Davidson & Sons Ltd,21093
Chorley Borough Council,http://statistics.data.gov.uk/id/local-authority/30UE,Economic Development,1096,Economic Development,Stationery,40050,"Printing, Stationery & General",5026,Supply x 10 Market Receipt Books Start from number 189501 330 per pack of 10,15/05/2013,88339,330.00,Revenue,Calderprint Ltd,17090
Chorley Borough Council,http://statistics.data.gov.uk/id/local-authority/30UE,Service Management & Support,1009,Streetscene & Leisure Contracts,Supplies - Workshop,40246,"Equipment, Furniture & Materia",5023,Repairs carried out on 4 post vehicle lift at Bengal St workshop as per insurance report,01/05/2013,87836,593.34,Revenue,Calibration & Consultancy Services UK,18882
Chorley Borough Council,http://statistics.data.gov.uk/id/local-authority/30UE,Unapportionable Central OHeads,1009,"Customer, ICT & Transactional",Emergency Call Out System,40096,Communication and Computing,5028,Call Charges March 2013,22/05/2013,88722,681.12,Revenue,CallCare Ltd,20257
Chorley Borough Council,http://statistics.data.gov.uk/id/local-authority/30UE,Unapportionable Central OHeads,1009,"Customer, ICT & Transactional",Emergency Call Out System,40096,Communication and Computing,5028,Standing Charge May 2013,22/05/2013,88722,120.00,Revenue,CallCare Ltd,20257
Chorley Borough Council,http://statistics.data.gov.uk/id/local-authority/30UE,Democratic Represent and  Mgnt,1007,Governance,Other Contributions,40145,Grants and Subscriptions,5031,"Meals at Mayor`s Charity Luncheon on 29th April 2013:",01/05/2013,88357,362.50,Revenue,Camerons Restaurant Ltd,53731
Chorley Borough Council,http://statistics.data.gov.uk/id/local-authority/30UE,Housing Benefit Administration,1077,"Customer, ICT & Transactional",IT Software - Annual Licences,40101,Communication and Computing,5028,Academy Software maintenance charge for 01/04/2013 to 31/03/2014.,10/05/2013,88317,"18,168.00",Revenue,Capita Business Services Ltd,17151
Chorley Borough Council,http://statistics.data.gov.uk/id/local-authority/30UE,Local Tax Collection,1010,"Customer, ICT & Transactional",IT Software - Annual Licences,40101,Communication and Computing,5028,Academy Software maintenance charge for 01/04/2013 to 31/03/2014.,10/05/2013,88317,"15,210.00",Revenue,Capita Business Services Ltd,17151
Chorley Borough Council,http://statistics.data.gov.uk/id/local-authority/30UE,Local Tax Collection,1010,"Customer, ICT & Transactional",IT Software - Annual Licences,40101,Communication and Computing,5028,Academy Software maintenance charge for 01/04/2013 to 31/03/2014.,10/05/2013,88317,"8,872.00",Revenue,Capita Business Services Ltd,17151
Chorley Borough Council,http://statistics.data.gov.uk/id/local-authority/30UE,Housing Benefit Administration,1077,"Customer, ICT & Transactional",Conferences - Staff,40120,Expenses,5030,Subsidy seminar Place for Copthorne Hotel Manchester on 22nd March 2013,24/05/2013,88399,350.00,Revenue,Capita Business Services Ltd,17151
Chorley Borough Council,http://statistics.data.gov.uk/id/local-authority/30UE,Community Development,1097,Policy & Performance,Core Funding Grants,40133,Grants and Subscriptions,5031,Core Funding 2013/14,10/05/2013,88344,"4,000.00",Revenue,Central Lancs Dial-A-Ride Ltd,16617
Chorley Borough Council,http://statistics.data.gov.uk/id/local-authority/30UE,Corporate Management,1008,Streetscene & Leisure Contracts,Other Contributions,40145,Grants and Subscriptions,5031,Administration services for the transport element of the Warm Homes Healthy People ,17/05/2013,88587,476.40,Revenue,Central Lancs Dial-A-Ride Ltd,16617
Chorley Borough Council,http://statistics.data.gov.uk/id/local-authority/30UE,Public Transport,1067,Chief Executives Office,Rail Passes - Concess. Travel,40022,"Equipment, Furniture & Materia",5023,200 Railcards,24/05/2013,88476,"4,436.00",Revenue,Cheshire West and Chester,16859
Chorley Borough Council,http://statistics.data.gov.uk/id/local-authority/30UE,Parking Services,1066,Streetscene & Leisure Contracts,External Contractors,50008,Private Contractors,5042,Staff parking Permits jan 13 - mar 13,03/05/2013,88374,333.85,Revenue,Chipside Ltd,22063
Chorley Borough Council,http://statistics.data.gov.uk/id/local-authority/30UE,Economic Development,1096,Economic Development,Grants To Other Organisations,40127,Grants and Subscriptions,5031,With respect to the Large Core Funding Contract for 2013/14 and the provision of Shopmob,08/05/2013,88167,"15,000.00",Revenue,Chorley & South Ribble Shopmobility,18403
Chorley Borough Council,http://statistics.data.gov.uk/id/local-authority/30UE,Building Control,1090,Governance,Training Course Fees,17010,Indirect Employee Expenses,5002,car parking,10/05/2013,88419,4.50,Revenue,Chorley BC Petty Cash,16301
Chorley Borough Council,http://statistics.data.gov.uk/id/local-authority/30UE,Democratic Represent and  Mgnt,1007,Governance,Use Of Transport - Mayoral Car,30015,Transport Recharges,5017,mayor car cleaning,10/05/2013,88419,2.67,Revenue,Chorley BC Petty Cash,16301
Chorley Borough Council,http://statistics.data.gov.uk/id/local-authority/30UE,Unapportionable Central OHeads,1009,Governance,Uniforms,40039,"Clothing, Uniforms and Laundry",5025,repair mayors gerboa,10/05/2013,88419,5.00,Revenue,Chorley BC Petty Cash,16301
Chorley Borough Council,http://statistics.data.gov.uk/id/local-authority/30UE,Unapportionable Central OHeads,1009,Governance,Computer Equipment-Maintenance,40105,Communication and Computing,5028,batteries,10/05/2013,88419,13.32,Revenue,Chorley BC Petty Cash,16301
Chorley Borough Council,http://statistics.data.gov.uk/id/local-authority/30UE,Democratic Represent and  Mgnt,1007,Governance,Tools & Equipment - Purchase,40003,"Equipment, Furniture & Materia",5023,batteries,10/05/2013,88419,14.92,Revenue,Chorley BC Petty Cash,16301
Chorley Borough Council,http://statistics.data.gov.uk/id/local-authority/30UE,Democratic Represent and  Mgnt,1007,Governance,Use Of Transport - Mayoral Car,30015,Transport Recharges,5017,mayors car wash,10/05/2013,88419,5.00,Revenue,Chorley BC Petty Cash,16301
Chorley Borough Council,http://statistics.data.gov.uk/id/local-authority/30UE,Democratic Represent and  Mgnt,1007,Governance,Tools & Equipment - Purchase,40003,"Equipment, Furniture & Materia",5023,key cut,10/05/2013,88419,3.21,Revenue,Chorley BC Petty Cash,16301
Chorley Borough Council,http://statistics.data.gov.uk/id/local-authority/30UE,Democratic Represent and  Mgnt,1007,Governance,Tools & Equipment - Purchase,40003,"Equipment, Furniture & Materia",5023,key tags,10/05/2013,88419,2.50,Revenue,Chorley BC Petty Cash,16301
Chorley Borough Council,http://statistics.data.gov.uk/id/local-authority/30UE,Democratic Represent and  Mgnt,1007,Governance,Tools & Equipment - Purchase,40003,"Equipment, Furniture & Materia",5023,batteries,10/05/2013,88419,4.50,Revenue,Chorley BC Petty Cash,16301
Chorley Borough Council,http://statistics.data.gov.uk/id/local-authority/30UE,Unapportionable Central OHeads,1009,Governance,Uniforms,40039,"Clothing, Uniforms and Laundry",5025,uniform,10/05/2013,88419,19.50,Revenue,Chorley BC Petty Cash,16301
Chorley Borough Council,http://statistics.data.gov.uk/id/local-authority/30UE,Democratic Represent and  Mgnt,1007,Governance,Miscellaneous Expenses,40200,Miscellaneous Expenses,5034,refreshments gost night,10/05/2013,88419,18.87,Revenue,Chorley BC Petty Cash,16301
Chorley Borough Council,http://statistics.data.gov.uk/id/local-authority/30UE,Democratic Represent and  Mgnt,1007,Governance,Miscellaneous Expenses,40200,Miscellaneous Expenses,5034,refreshments ghost night,10/05/2013,88419,12.79,Revenue,Chorley BC Petty Cash,16301
Chorley Borough Council,http://statistics.data.gov.uk/id/local-authority/30UE,Corporate Management,1008,Governance,Tools & Equipment - Purchase,40003,"Equipment, Furniture & Materia",5023,velcro dirty dog,10/05/2013,88419,11.65,Revenue,Chorley BC Petty Cash,16301
Chorley Borough Council,http://statistics.data.gov.uk/id/local-authority/30UE,Democratic Represent and  Mgnt,1007,Governance,Tools & Equipment - Purchase,40003,"Equipment, Furniture & Materia",5023,key cut,10/05/2013,88419,3.21,Revenue,Chorley BC Petty Cash,16301
Chorley Borough Council,http://statistics.data.gov.uk/id/local-authority/30UE,Democratic Represent and  Mgnt,1007,Governance,Use Of Transport - Mayoral Car,30015,Transport Recharges,5017,car wash mayoral,10/05/2013,88419,2.33,Revenue,Chorley BC Petty Cash,16301
Chorley Borough Council,http://statistics.data.gov.uk/id/local-authority/30UE,Democratic Represent and  Mgnt,1007,Governance,Use Of Transport - Mayoral Car,30015,Transport Recharges,5017,petrol mayors car,10/05/2013,88419,16.67,Revenue,Chorley BC Petty Cash,16301
Chorley Borough Council,http://statistics.data.gov.uk/id/local-authority/30UE,Democratic Represent and  Mgnt,1007,Governance,Use Of Transport - Mayoral Car,30015,Transport Recharges,5017,mayoral car wash,10/05/2013,88419,5.00,Revenue,Chorley BC Petty Cash,16301
Chorley Borough Council,http://statistics.data.gov.uk/id/local-authority/30UE,Economic Development,1096,Governance,Miscellaneous Expenses,40200,Miscellaneous Expenses,5034,keys cut,10/05/2013,88419,17.75,Revenue,Chorley BC Petty Cash,16301
Chorley Borough Council,http://statistics.data.gov.uk/id/local-authority/30UE,Economic Development,1096,Governance,Miscellaneous Expenses,40200,Miscellaneous Expenses,5034,keys cut,10/05/2013,88419,16.67,Revenue,Chorley BC Petty Cash,16301
Chorley Borough Council,http://statistics.data.gov.uk/id/local-authority/30UE,Unapportionable Central OHeads,1009,Governance,Tools & Equipment - Purchase,40003,"Equipment, Furniture & Materia",5023,roll of barrier tape,10/05/2013,88419,7.49,Revenue,Chorley BC Petty Cash,16301
Chorley Borough Council,http://statistics.data.gov.uk/id/local-authority/30UE,Democratic Represent and  Mgnt,1007,Governance,Children's Activities,40188,Miscellaneous Expenses,5034,playday materials,10/05/2013,88419,8.33,Revenue,Chorley BC Petty Cash,16301
Chorley Borough Council,http://statistics.data.gov.uk/id/local-authority/30UE,Planning Policy,1092,Governance,Postages,40082,Communication and Computing,5028,LDF postages,10/05/2013,88419,5.90,Revenue,Chorley BC Petty Cash,16301
Chorley Borough Council,http://statistics.data.gov.uk/id/local-authority/30UE,Democratic Represent and  Mgnt,1007,Governance,Miscellaneous Expenses,40200,Miscellaneous Expenses,5034,visitors cloakroom,10/05/2013,88419,12.35,Revenue,Chorley BC Petty Cash,16301
Chorley Borough Council,http://statistics.data.gov.uk/id/local-authority/30UE,Democratic Represent and  Mgnt,1007,Governance,Use Of Transport - Mayoral Car,30015,Transport Recharges,5017,petrol,10/05/2013,88419,12.50,Revenue,Chorley BC Petty Cash,16301
Chorley Borough Council,http://statistics.data.gov.uk/id/local-authority/30UE,Democratic Represent and  Mgnt,1007,Governance,Use Of Transport - Mayoral Car,30015,Transport Recharges,5017,car wash,10/05/2013,88419,5.33,Revenue,Chorley BC Petty Cash,16301
Chorley Borough Council,http://statistics.data.gov.uk/id/local-authority/30UE,Democratic Represent and  Mgnt,1007,Governance,Children's Activities,40188,Miscellaneous Expenses,5034,arts materials,10/05/2013,88419,5.83,Revenue,Chorley BC Petty Cash,16301
Chorley Borough Council,http://statistics.data.gov.uk/id/local-authority/30UE,Democratic Represent and  Mgnt,1007,Governance,Sports Development Initiatives,40186,Miscellaneous Expenses,5034,refreshments,10/05/2013,88419,8.50,Revenue,Chorley BC Petty Cash,16301
Chorley Borough Council,http://statistics.data.gov.uk/id/local-authority/30UE,Elections,1012,Governance,Postages,40082,Communication and Computing,5028,postage,10/05/2013,88419,12.60,Revenue,Chorley BC Petty Cash,16301
Chorley Borough Council,http://statistics.data.gov.uk/id/local-authority/30UE,Democratic Represent and  Mgnt,1007,Governance,Use Of Transport - Mayoral Car,30015,Transport Recharges,5017,mayors car wash,10/05/2013,88419,6.67,Revenue,Chorley BC Petty Cash,16301
Chorley Borough Council,http://statistics.data.gov.uk/id/local-authority/30UE,Democratic Represent and  Mgnt,1007,Governance,Stationery,40050,"Printing, Stationery & General",5026,visitor book,10/05/2013,88419,4.16,Revenue,Chorley BC Petty Cash,16301
Chorley Borough Council,http://statistics.data.gov.uk/id/local-authority/30UE,Democratic Represent and  Mgnt,1007,Governance,Sports Development Initiatives,40186,Miscellaneous Expenses,5034,refreshments,10/05/2013,88419,7.30,Revenue,Chorley BC Petty Cash,16301
Chorley Borough Council,http://statistics.data.gov.uk/id/local-authority/30UE,Democratic Represent and  Mgnt,1007,Governance,Sports Development Initiatives,40186,Miscellaneous Expenses,5034,refreshments,10/05/2013,88419,10.32,Revenue,Chorley BC Petty Cash,16301
Chorley Borough Council,http://statistics.data.gov.uk/id/local-authority/30UE,Democratic Represent and  Mgnt,1007,Governance,Sports Development Initiatives,40186,Miscellaneous Expenses,5034,biscuits,10/05/2013,88419,5.57,Revenue,Chorley BC Petty Cash,16301
Chorley Borough Council,http://statistics.data.gov.uk/id/local-authority/30UE,Unapportionable Central OHeads,1009,Governance,Miscellaneous Expenses,40200,Miscellaneous Expenses,5034,duct tape,10/05/2013,88419,7.48,Revenue,Chorley BC Petty Cash,16301
Chorley Borough Council,http://statistics.data.gov.uk/id/local-authority/30UE,Unapportionable Central OHeads,1009,Governance,Tools & Equipment - Purchase,40003,"Equipment, Furniture & Materia",5023,keys cut,10/05/2013,88419,5.63,Revenue,Chorley BC Petty Cash,16301
Chorley Borough Council,http://statistics.data.gov.uk/id/local-authority/30UE,Economic Development,1096,Governance,Miscellaneous Expenses,40200,Miscellaneous Expenses,5034,refreshments,10/05/2013,88419,2.90,Revenue,Chorley BC Petty Cash,16301
Chorley Borough Council,http://statistics.data.gov.uk/id/local-authority/30UE,Democratic Represent and  Mgnt,1007,Governance,Use Of Transport - Mayoral Car,30015,Transport Recharges,5017,car wash,10/05/2013,88419,5.33,Revenue,Chorley BC Petty Cash,16301
Chorley Borough Council,http://statistics.data.gov.uk/id/local-authority/30UE,Unapportionable Central OHeads,1009,Governance,Refreshments,40036,Catering,5024,milk,10/05/2013,88419,1.00,Revenue,Chorley BC Petty Cash,16301
Chorley Borough Council,http://statistics.data.gov.uk/id/local-authority/30UE,Unapportionable Central OHeads,1009,Governance,Uniforms,40039,"Clothing, Uniforms and Laundry",5025,alterations,10/05/2013,88419,14.00,Revenue,Chorley BC Petty Cash,16301
Chorley Borough Council,http://statistics.data.gov.uk/id/local-authority/30UE,Economic Development,1096,Governance,Miscellaneous Expenses,40200,Miscellaneous Expenses,5034,cable ties,10/05/2013,88419,4.26,Revenue,Chorley BC Petty Cash,16301
Chorley Borough Council,http://statistics.data.gov.uk/id/local-authority/30UE,Democratic Represent and  Mgnt,1007,Governance,Tools & Equipment - Purchase,40003,"Equipment, Furniture & Materia",5023,inner tube,10/05/2013,88419,5.39,Revenue,Chorley BC Petty Cash,16301
Chorley Borough Council,http://statistics.data.gov.uk/id/local-authority/30UE,Housing Benefit Administration,1077,Governance,Miscellaneous Expenses,40200,Miscellaneous Expenses,5034,copy of birth certs,10/05/2013,88419,10.00,Revenue,Chorley BC Petty Cash,16301
Chorley Borough Council,http://statistics.data.gov.uk/id/local-authority/30UE,Economic Development,1096,Governance,Tools & Equipment - Purchase,40003,"Equipment, Furniture & Materia",5023,drill bits,10/05/2013,88419,5.60,Revenue,Chorley BC Petty Cash,16301
Chorley Borough Council,http://statistics.data.gov.uk/id/local-authority/30UE,Unapportionable Central OHeads,1009,Governance,Tools & Equipment - Purchase,40003,"Equipment, Furniture & Materia",5023,allen keys,10/05/2013,88419,1.20,Revenue,Chorley BC Petty Cash,16301
Chorley Borough Council,http://statistics.data.gov.uk/id/local-authority/30UE,Unapportionable Central OHeads,1009,Governance,Refreshments,40036,Catering,5024,refreshments,10/05/2013,88419,14.37,Revenue,Chorley BC Petty Cash,16301
Chorley Borough Council,http://statistics.data.gov.uk/id/local-authority/30UE,Elections,1012,Governance,Rent/Hire Of Premises,20017,Premises Rents,5007,Hire of room for Polling Station - Lancashire County Council Elections 2 May 2013,31/05/2013,88870,330.00,Revenue,Chorley Methodist Church,18422
Chorley Borough Council,http://statistics.data.gov.uk/id/local-authority/30UE,Capital,Capital,Economic Development,Other Capital Grants/Loans,3000,Capital Expenditure,Capital,Chorley Climate Change Grant,08/05/2013,88288,"10,000.00",Capital,Chorley Nissan,57435
Chorley Borough Council,http://statistics.data.gov.uk/id/local-authority/30UE,Community Development,1097,Policy & Performance,Core Funding Grants,40133,Grants and Subscriptions,5031,Core Funding,10/05/2013,88414,460.00,Revenue,Chorley Pensioners Association,21454
Chorley Borough Council,http://statistics.data.gov.uk/id/local-authority/30UE,Democratic Represent and  Mgnt,1007,Governance,Processional Routes,40177,Miscellaneous Expenses,5034,Band for Civic Sunday,17/05/2013,88540,400.00,Revenue,Chorley Pipe Band,21576
Chorley Borough Council,http://statistics.data.gov.uk/id/local-authority/30UE,Community Development,1097,Policy & Performance,Citizens Advice Bureau,40125,Grants and Subscriptions,5031,ebt advice service,22/05/2013,88541,"28,400.00",Revenue,Chorley Sth Ribble & Dist Citizen Advice Bureaux,17035
Chorley Borough Council,http://statistics.data.gov.uk/id/local-authority/30UE,Corporate Management,1008,Streetscene & Leisure Contracts,Other Contributions,40145,Grants and Subscriptions,5031,Fuel Poverty Checks & Energy Advice Sessions @ 50 per appointment ,22/05/2013,88746,"1,052.50",Revenue,Chorley Sth Ribble & Dist Citizen Advice Bureaux,17035
Chorley Borough Council,http://statistics.data.gov.uk/id/local-authority/30UE,Corporate Management,1008,Streetscene & Leisure Contracts,Other Contributions,40145,Grants and Subscriptions,5031,Fuel Poverty Checks & Energy Advice Sessions @ 50 per appointment ,22/05/2013,88766,667.40,Revenue,Chorley Sth Ribble & Dist Citizen Advice Bureaux,17035
Chorley Borough Council,http://statistics.data.gov.uk/id/local-authority/30UE,Community Development,1097,Policy & Performance,Core Funding Grants,40133,Grants and Subscriptions,5031,Core Funding 2013/14,10/05/2013,88296,"4,641.00",Revenue,Chorley Womens Centre,17036
Chorley Borough Council,http://statistics.data.gov.uk/id/local-authority/30UE,Economic Development,1096,Economic Development,Grants To Other Organisations,40127,Grants and Subscriptions,5031,Starting in business - Capital Expenditure,31/05/2013,88855,802.09,Revenue,NAME REDACTED,59804
Chorley Borough Council,http://statistics.data.gov.uk/id/local-authority/30UE,Service Management & Support,1009,Streetscene & Leisure Contracts,Transport Operating Leases,30029,Contrct Hire & Operating Lease,5018,Rental of Schmidt Swingo Compact Sweeper AE55 HKK from 30th April to 29th May 2013,15/05/2013,88556,250.00,Revenue,Chrystal Consulting,17613
Chorley Borough Council,http://statistics.data.gov.uk/id/local-authority/30UE,Community Development,1097,Policy & Performance,Core Funding Grants,40133,Grants and Subscriptions,5031,Core Funding Circle Counselling 2013/14,10/05/2013,88343,"10,728.00",Revenue,Circle Counselling Service,53525
Chorley Borough Council,http://statistics.data.gov.uk/id/local-authority/30UE,Economic Development,1096,Economic Development,Tools & Equipment - Maintenance,40005,"Equipment, Furniture & Materia",5023,"To supply:10 legs20 mushrooms20 cap ends with ball fi",15/05/2013,88509,450.00,Revenue,City B Group Ltd,47300
Chorley Borough Council,http://statistics.data.gov.uk/id/local-authority/30UE,Unapportionable Central OHeads,1009,Shared Service Arrangement,Computer Software-Maintenance,40107,Communication and Computing,5028,To Change user licence for Kofax Licences for South Ribble and Chorley to Shared Service ,22/05/2013,87760,"3,370.00",Revenue,Civica UK Limited,17463
Chorley Borough Council,http://statistics.data.gov.uk/id/local-authority/30UE,Unapportionable Central OHeads,1009,Shared Service Arrangement,IT Software - Annual Licences,40101,Communication and Computing,5028,Transaction Useage Over Useage (Over 25000 transactions) 2012/13 - as per quotation ,22/05/2013,88767,"2,750.00",Revenue,Civica UK Limited,17463
Chorley Borough Council,http://statistics.data.gov.uk/id/local-authority/30UE,Corporate Management,1008,Policy & Performance,Professional Fees,40063,Services,5027,2 x sign language interpreters for Equality Forum meeting on Tuesday 16th April 2013,08/05/2013,88276,279.50,Revenue,Co Sign Ltd,17135
Chorley Borough Council,http://statistics.data.gov.uk/id/local-authority/30UE,Parking Services,1066,Streetscene & Leisure Contracts,Special Repairs,20007,Repairs Maintenance & Alts,5005,Specialist Repairs to Town Centre Floor Mosaic adj to covered market,24/05/2013,88729,"4,100.00",Revenue,Cobblestone Designs,59493
Chorley Borough Council,http://statistics.data.gov.uk/id/local-authority/30UE,Homelessness,1075,Housing,Computer - Support Services,40111,Communication and Computing,5028,Sub regional management costs 2013/2014 - CBL,01/05/2013,88314,585.43,Revenue,Community Gateway Association Limited,22193
Chorley Borough Council,http://statistics.data.gov.uk/id/local-authority/30UE,Public Transport,1067,Streetscene & Leisure Contracts,Bus Shelters -Maintenance,20062,Grounds Maintenance Costs,5013,Supply and install new bus shelter on A6 Preston Rd at the junction with Cloverfield ,01/05/2013,88365,"1,531.00",Revenue,Commutaports,56228
Chorley Borough Council,http://statistics.data.gov.uk/id/local-authority/30UE,Service Management & Support,1009,Streetscene & Leisure Contracts,External Contractor,40198,Miscellaneous Expenses,5034,Remove sycamore and self seeding trees ADDDRESS REDACTED,17/05/2013,88612,500.00,Revenue,Cornthwaite Tree Care,21250
Chorley Borough Council,http://statistics.data.gov.uk/id/local-authority/30UE,Service Management & Support,1009,Streetscene & Leisure Contracts,Hire Of Transport,30028,Contrct Hire & Operating Lease,5018,Hire of Schmidt Swingo 250 Reg AE57ENG at price,24/05/2013,88437,"2,068.00",Revenue,Dawson Rental Sweepers,22011
Chorley Borough Council,http://statistics.data.gov.uk/id/local-authority/30UE,Service Management & Support,1009,Streetscene & Leisure Contracts,Hire Of Transport,30028,Contrct Hire & Operating Lease,5018,Hire of Schmidt Swingo 250 Reg No YK59BDO at agreed price,24/05/2013,88438,"2,068.00",Revenue,Dawson Rental Sweepers,22011
Chorley Borough Council,http://statistics.data.gov.uk/id/local-authority/30UE,Service Management & Support,1009,Streetscene & Leisure Contracts,Hire Of Transport,30028,Contrct Hire & Operating Lease,5018,Hire of Johnston VT650 Reg RX08 FDV at price quoted from 01/04/2013 to 01/07/2013,24/05/2013,88439,"2,574.00",Revenue,Dawson Rental Sweepers,22011
Chorley Borough Council,http://statistics.data.gov.uk/id/local-authority/30UE,Democratic Represent and  Mgnt,1007,Streetscene & Leisure Contracts,Publicity - Advertising,40157,Miscellaneous Expenses,5034,Purchase of flowers and sundries for wedding arrangements Astley Hall,15/05/2013,88472,405.50,Revenue,Dedrah Moss,58138
Chorley Borough Council,http://statistics.data.gov.uk/id/local-authority/30UE,Economic Development,1096,Economic Development,Grants To Other Organisations,40127,Grants and Subscriptions,5031,Starting in business Grant,15/05/2013,88412,"1,000.00",Revenue,NAME REDACTED of Ebb and Flo Bookshop,59017
Chorley Borough Council,http://statistics.data.gov.uk/id/local-authority/30UE,Economic Development,1096,Economic Development,Grants To Other Organisations,40127,Grants and Subscriptions,5031,Shop Front Grant,17/05/2013,88602,872.72,Revenue,NAME REDACTED of Ebb and Flo Bookshop,59017
Chorley Borough Council,http://statistics.data.gov.uk/id/local-authority/30UE,Local Tax Collection,1010,"Customer, ICT & Transactional",IT Software - Annual Licences,40101,Communication and Computing,5028,Annaul License,29/05/2013,88558,"1,051.67",Revenue,Document Output Solutions UK Ltd,21304
Chorley Borough Council,http://statistics.data.gov.uk/id/local-authority/30UE,Local Tax Collection,1010,"Customer, ICT & Transactional",IT Software - Annual Licences,40101,Communication and Computing,5028,Council Tax,29/05/2013,88558,"1,051.65",Revenue,Document Output Solutions UK Ltd,21304
Chorley Borough Council,http://statistics.data.gov.uk/id/local-authority/30UE,Housing Benefit Administration,1077,"Customer, ICT & Transactional",IT Software - Annual Licences,40101,Communication and Computing,5028,Housing Bens,29/05/2013,88558,"1,051.68",Revenue,Document Output Solutions UK Ltd,21304
Chorley Borough Council,http://statistics.data.gov.uk/id/local-authority/30UE,Community Development,1097,Governance,Grants To Other Organisations,40127,Grants and Subscriptions,5031,Community Grant,22/05/2013,88637,250.00,Revenue,Eccleston & Heskin Football Club,59678
Chorley Borough Council,http://statistics.data.gov.uk/id/local-authority/30UE,Community Development,1097,Governance,Grants To Other Organisations,40127,Grants and Subscriptions,5031,Community Grant,17/05/2013,88603,500.00,Revenue,Eccleston Scout Group,22218
Chorley Borough Council,http://statistics.data.gov.uk/id/local-authority/30UE,Democratic Represent and  Mgnt,1007,Health Environment & Neighbourhoods,Promotional Expenses,40159,Miscellaneous Expenses,5034,To provide 50 hooded sweatshirst for sportivate participants with logos and sizes,01/05/2013,88336,560.00,Revenue,Eclipse (Sports) UK,17401
Chorley Borough Council,http://statistics.data.gov.uk/id/local-authority/30UE,Service Management & Support,1009,Streetscene & Leisure Contracts,Games/Playing Field Equipment,40009,"Equipment, Furniture & Materia",5023,5nr Elliptical Aluminium Socketed Posts. 9 A Side 16` x 7` Code F9-1,08/05/2013,88400,"3,045.00",Revenue,Edwards Sports Products Ltd,59492
Chorley Borough Council,http://statistics.data.gov.uk/id/local-authority/30UE,Democratic Represent and  Mgnt,1007,Health Environment & Neighbourhoods,Lifelong Learning Activities,40194,Miscellaneous Expenses,5034,For delivery of the following workshop Us Girls: Girls 4 Gold Handball Leaders.,15/05/2013,88449,335.00,Revenue,England Handball Association Limited,22417
Chorley Borough Council,http://statistics.data.gov.uk/id/local-authority/30UE,Unapportionable Central OHeads,1009,Streetscene & Leisure Contracts,Depot Licences,40236,Miscellaneous Expenses,5034,Fees to cover waste transfer licence for Bengal St as on invoice N01000370J,01/05/2013,88364,"4,474.50",Revenue,Environment Agency,18256
Chorley Borough Council,http://statistics.data.gov.uk/id/local-authority/30UE,Capital,Capital,Streetscene & Leisure Contracts,Equipment,3014,Capital Expenditure,Capital,Replacement of AHU at Brinscall Pool as per Tender Conditions.,22/05/2013,88741,"66,474.35",Capital,ESG Pool Ventilation Ltd,58135
Chorley Borough Council,http://statistics.data.gov.uk/id/local-authority/30UE,Community Development,1097,Governance,Grants To Other Organisations,40127,Grants and Subscriptions,5031,Community Grant Fund,24/05/2013,88778,500.00,Revenue,Euxton Parish Council,16838
Chorley Borough Council,http://statistics.data.gov.uk/id/local-authority/30UE,Community Development,1097,Health Environment & Neighbourhoods,Community Develop Initiatives,40185,Miscellaneous Expenses,5034,Grant for Neighbourhood working project towards the larger ransnap woods project,29/05/2013,88854,"1,000.00",Revenue,Euxton Parish Council,16838
Chorley Borough Council,http://statistics.data.gov.uk/id/local-authority/30UE,Building Control,1090,Planning,Professional Fees,40063,Services,5027,Proposed alterations to ADDRESS REDACTED,08/05/2013,88398,325.00,Revenue,Extended Design Limited,22302
Chorley Borough Council,http://statistics.data.gov.uk/id/local-authority/30UE,Service Management & Support,1009,Streetscene & Leisure Contracts,Hire Of Transport,30028,Contrct Hire & Operating Lease,5018,Hire of Case tractor and side arm flail at price quoted for 52 week period ,10/05/2013,88462,"1,639.84",Revenue,F R Sharrock Ltd,18091
Chorley Borough Council,http://statistics.data.gov.uk/id/local-authority/30UE,Service Management & Support,1009,Streetscene & Leisure Contracts,Hire Of Transport,30028,Contrct Hire & Operating Lease,5018,hire of side arm flail,24/05/2013,88691,"1,714.37",Revenue,F R Sharrock Ltd,18091
Chorley Borough Council,http://statistics.data.gov.uk/id/local-authority/30UE,Service Management & Support,1009,Streetscene & Leisure Contracts,Vehicle Maintenance,30045,Direct Transport Costs,5016,Water pump for the haulage tractor,22/05/2013,88727,354.81,Revenue,F R Sharrock Ltd,18091
Chorley Borough Council,http://statistics.data.gov.uk/id/local-authority/30UE,Service Management & Support,1009,Streetscene & Leisure Contracts,Tools & Equipment - Maintenance,40005,"Equipment, Furniture & Materia",5023,Supply air filters No HD-17211-ZLD-023  x 12 for Husqvarna mulching mowers ,31/05/2013,88834,390.00,Revenue,F R Sharrock Ltd,18091
Chorley Borough Council,http://statistics.data.gov.uk/id/local-authority/30UE,Service Management & Support,1009,Streetscene & Leisure Contracts,Freight Transport Assoc Fees,40150,Grants and Subscriptions,5031,Carryout 6 weeklysafety inspection on PN02HRL for Olicence compliance,17/05/2013,88569,112.30,Revenue,Freight Transport Assoc Ltd,16333
Chorley Borough Council,http://statistics.data.gov.uk/id/local-authority/30UE,Service Management & Support,1009,Streetscene & Leisure Contracts,Freight Transport Assoc Fees,40150,Grants and Subscriptions,5031,Carryout 6 weekly safety inspection on DKO7LDE for Olicence compliance,17/05/2013,88569,112.30,Revenue,Freight Transport Assoc Ltd,16333
Chorley Borough Council,http://statistics.data.gov.uk/id/local-authority/30UE,Service Management & Support,1009,Streetscene & Leisure Contracts,Freight Transport Assoc Fees,40150,Grants and Subscriptions,5031,Carryout 6 weekly safety inspection on DX55CVG for Olicence compliance,17/05/2013,88569,112.30,Revenue,Freight Transport Assoc Ltd,16333
Chorley Borough Council,http://statistics.data.gov.uk/id/local-authority/30UE,Service Management & Support,1009,Streetscene & Leisure Contracts,Freight Transport Assoc Fees,40150,Grants and Subscriptions,5031,Carryout 6 weekly safety inspection on DK56JWL for Olicence compliance,17/05/2013,88569,112.30,Revenue,Freight Transport Assoc Ltd,16333
Chorley Borough Council,http://statistics.data.gov.uk/id/local-authority/30UE,Service Management & Support,1009,Streetscene & Leisure Contracts,Freight Transport Assoc Fees,40150,Grants and Subscriptions,5031,Carryout 6 weekly safety inspection on DK56JWO forOlicence compliance,17/05/2013,88569,112.30,Revenue,Freight Transport Assoc Ltd,16333
Chorley Borough Council,http://statistics.data.gov.uk/id/local-authority/30UE,Unapportionable Central OHeads,1009,Streetscene & Leisure Contracts,Security Service,40062,Services,5027,Civic Offices,22/05/2013,88687,47.49,Revenue,G4S Cash Solutions UK Ltd,22099
Chorley Borough Council,http://statistics.data.gov.uk/id/local-authority/30UE,Homelessness,1075,Streetscene & Leisure Contracts,Security Service,40062,Services,5027,Cotswold House,22/05/2013,88687,23.75,Revenue,G4S Cash Solutions UK Ltd,22099
Chorley Borough Council,http://statistics.data.gov.uk/id/local-authority/30UE,Democratic Represent and  Mgnt,1007,Streetscene & Leisure Contracts,Security Service,40062,Services,5027,Leisure Centres,22/05/2013,88687,233.78,Revenue,G4S Cash Solutions UK Ltd,22099
Chorley Borough Council,http://statistics.data.gov.uk/id/local-authority/30UE,Democratic Represent and  Mgnt,1007,Streetscene & Leisure Contracts,Burglar Alarms & Security Systems,20075,Fixtures and Fittings,5010,Keyholding contract for 11/02/13 - 210/02/14,24/05/2013,88770,679.00,Revenue,G4S Cash Solutions UK Ltd,22099
Chorley Borough Council,http://statistics.data.gov.uk/id/local-authority/30UE,Democratic Represent and  Mgnt,1007,Streetscene & Leisure Contracts,Burglar Alarms & Security Systems,20075,Fixtures and Fittings,5010,Keyholding Contract for 01/04/13 - 31/03/14,24/05/2013,88771,707.00,Revenue,G4S Cash Solutions UK Ltd,22099
Chorley Borough Council,http://statistics.data.gov.uk/id/local-authority/30UE,Business Support,1095,Governance,Gas,20014,Energy Costs,5006,Gas at ADDRESS REDACTED,22/05/2013,88693,675.57,Revenue,Gazprom Energy,56502
Chorley Borough Council,http://statistics.data.gov.uk/id/local-authority/30UE,Business Support,1095,Governance,Gas,20014,Energy Costs,5006,Gas at ADDRESS REDACTED,29/05/2013,88816,705.79,Revenue,Gazprom Energy,56502
Chorley Borough Council,http://statistics.data.gov.uk/id/local-authority/30UE,Corporate Management,1008,Health Environment & Neighbourhoods,Vandalism Repairs,20005,Repairs Maintenance & Alts,5005,12 month contract for the removal of Graffiti in accordance with contract conditions ,15/05/2013,88522,"1,662.50",Revenue,Graffiti Removal (North) Ltd,17320
Chorley Borough Council,http://statistics.data.gov.uk/id/local-authority/30UE,Corporate Management,1008,Shared Service Arrangement,External Audit,40064,Services,5027,External Audit 12-13  installments 1-3,24/05/2013,88776,"14,859.90",Revenue,Grant Thornton UK LLP,57322
Chorley Borough Council,http://statistics.data.gov.uk/id/local-authority/30UE,Unapportionable Central OHeads,1009,HR & Org. Development,HR Approved Training Expenses,17001,Indirect Employee Expenses,5002,"Training Course - Dealing with Difficult Situations - Wednesday, 8 May 2013",22/05/2013,88560,617.75,Revenue,Greenfield Training Consultants,21161
Chorley Borough Council,http://statistics.data.gov.uk/id/local-authority/30UE,Elections,1012,Governance,Election Fees,40080,Services,5027,Annual Tax Return for 2012,22/05/2013,88719,"19,959.16",Revenue,H M Revenue & Customs Only,21264
Chorley Borough Council,http://statistics.data.gov.uk/id/local-authority/30UE,Unapportionable Central OHeads,1009,Shared Service Arrangement,Printing,40043,"Printing, Stationery & General",5026,Serial Number - 40137330 5000 SRBC cheques 2x Troy Micr Toner Cartridge 2100 - 2200,08/05/2013,88401,608.90,Revenue,Hague Computer Supplies Ltd,56014
Chorley Borough Council,http://statistics.data.gov.uk/id/local-authority/30UE,Elections,1012,Governance,Computer Software-Maintenance,40107,Communication and Computing,5028,Annual Support maintenance of EROS,17/05/2013,88581,"4,729.42",Revenue,Halarose Limited,18133
Chorley Borough Council,http://statistics.data.gov.uk/id/local-authority/30UE,Elections,1012,Governance,Computer Software-Maintenance,40107,Communication and Computing,5028,Annual Support LLPG interface,17/05/2013,88581,937.72,Revenue,Halarose Limited,18133
Chorley Borough Council,http://statistics.data.gov.uk/id/local-authority/30UE,Elections,1012,Governance,Computer Software-Maintenance,40107,Communication and Computing,5028,VDF Licences (5) - Annual Support,17/05/2013,88581,131.00,Revenue,Halarose Limited,18133
Chorley Borough Council,http://statistics.data.gov.uk/id/local-authority/30UE,Elections,1012,Governance,Computer Software-Maintenance,40107,Communication and Computing,5028,Annual Support and maintenance of Web EROS (21 User),17/05/2013,88581,"2,609.33",Revenue,Halarose Limited,18133
Chorley Borough Council,http://statistics.data.gov.uk/id/local-authority/30UE,Housing Benefit Administration,1077,"Customer, ICT & Transactional",General Subscriptions,40146,Grants and Subscriptions,5031,"Subscription for 010413 - 310314 for all staff when applying with their work address",24/05/2013,88606,299.00,Revenue,Hbinfo Ltd,19710
Chorley Borough Council,http://statistics.data.gov.uk/id/local-authority/30UE,Democratic Represent and  Mgnt,1007,Streetscene & Leisure Contracts,Fixtures & Fittings - Purchase,20027,Fixtures and Fittings,5010,Bespoke desk for Astley Hall front of house incorporating a donations box,01/05/2013,88304,"1,000.00",Revenue,Heckfords,58862
Chorley Borough Council,http://statistics.data.gov.uk/id/local-authority/30UE,Democratic Represent and  Mgnt,1007,Streetscene & Leisure Contracts,Internal Decorating,20008,Repairs Maintenance & Alts,5005,Memorial room refurbishment - Painting and decorating - price excludes VAT,01/05/2013,88305,350.00,Revenue,Heckfords,58862
Chorley Borough Council,http://statistics.data.gov.uk/id/local-authority/30UE,Democratic Represent and  Mgnt,1007,Streetscene & Leisure Contracts,General Repairs,20004,Repairs Maintenance & Alts,5005,Memorial room refurbishment - Electrician including cabling and switches - price exc VAT,01/05/2013,88305,750.00,Revenue,Heckfords,58862
Chorley Borough Council,http://statistics.data.gov.uk/id/local-authority/30UE,Democratic Represent and  Mgnt,1007,Streetscene & Leisure Contracts,Furniture - Purchase,40012,"Equipment, Furniture & Materia",5023,Memorial room refurbishment - Custom built display case with mahoganyse and enclosed ,01/05/2013,88305,"1,980.00",Revenue,Heckfords,58862
Chorley Borough Council,http://statistics.data.gov.uk/id/local-authority/30UE,Capital,Capital,Streetscene & Leisure Contracts,Consultants Fees,3025,Capital Expenditure,Capital,Drainage & Pitch improvements,15/05/2013,88507,"2,000.00",Capital,HIM Associates,55659
Chorley Borough Council,http://statistics.data.gov.uk/id/local-authority/30UE,Unapportionable Central OHeads,1009,"Customer, ICT & Transactional",Computer Software-Maintenance,40107,Communication and Computing,5028,086338 - Spatially Enabled,24/05/2013,88000,"8,079.75",Revenue,IDOX Software Limited,17542
Chorley Borough Council,http://statistics.data.gov.uk/id/local-authority/30UE,Unapportionable Central OHeads,1009,"Customer, ICT & Transactional",Computer Software-Maintenance,40107,Communication and Computing,5028,086339 - ORB-it Service Agreement,24/05/2013,88000,"13,273.75",Revenue,IDOX Software Limited,17542
Chorley Borough Council,http://statistics.data.gov.uk/id/local-authority/30UE,Unapportionable Central OHeads,1009,"Customer, ICT & Transactional",Computer Software-Maintenance,40107,Communication and Computing,5028,086340 - ORB-it with DIP Interface Maintenance,24/05/2013,88000,"6,665.20",Revenue,IDOX Software Limited,17542
Chorley Borough Council,http://statistics.data.gov.uk/id/local-authority/30UE,Unapportionable Central OHeads,1009,"Customer, ICT & Transactional",Computer Software-Maintenance,40107,Communication and Computing,5028,086341 - UFM e-Planning Connector - 3rd Party,24/05/2013,88000,843.44,Revenue,IDOX Software Limited,17542
Chorley Borough Council,http://statistics.data.gov.uk/id/local-authority/30UE,Unapportionable Central OHeads,1009,"Customer, ICT & Transactional",Computer Software-Maintenance,40107,Communication and Computing,5028,086342 - UFM Consultee Access for Building Control,24/05/2013,88000,864.01,Revenue,IDOX Software Limited,17542
Chorley Borough Council,http://statistics.data.gov.uk/id/local-authority/30UE,Unapportionable Central OHeads,1009,"Customer, ICT & Transactional",Computer Software-Maintenance,40107,Communication and Computing,5028,086343 - UFM Gazetteer Connector (Enterprise),24/05/2013,88000,"2,875.87",Revenue,IDOX Software Limited,17542
Chorley Borough Council,http://statistics.data.gov.uk/id/local-authority/30UE,Unapportionable Central OHeads,1009,"Customer, ICT & Transactional",Computer Software-Maintenance,40107,Communication and Computing,5028,086344 - UFM Street Naming and Numbering Module,24/05/2013,88000,"1,230.36",Revenue,IDOX Software Limited,17542
Chorley Borough Council,http://statistics.data.gov.uk/id/local-authority/30UE,Unapportionable Central OHeads,1009,"Customer, ICT & Transactional",Computer Software-Maintenance,40107,Communication and Computing,5028,086345 - UFM 1App Planning Portal Connector,24/05/2013,88000,956.94,Revenue,IDOX Software Limited,17542
Chorley Borough Council,http://statistics.data.gov.uk/id/local-authority/30UE,Unapportionable Central OHeads,1009,"Customer, ICT & Transactional",Computer Software-Maintenance,40107,Communication and Computing,5028,086346 - UFM GMS Exchange Connector - Enterprise,24/05/2013,88000,"2,475.05",Revenue,IDOX Software Limited,17542
Chorley Borough Council,http://statistics.data.gov.uk/id/local-authority/30UE,Unapportionable Central OHeads,1009,"Customer, ICT & Transactional",Computer Software-Maintenance,40107,Communication and Computing,5028,086347 - UFM IDOX CA for DC,24/05/2013,88000,"2,104.02",Revenue,IDOX Software Limited,17542
Chorley Borough Council,http://statistics.data.gov.uk/id/local-authority/30UE,Unapportionable Central OHeads,1009,"Customer, ICT & Transactional",Computer Software-Maintenance,40107,Communication and Computing,5028,086348 - UFM IDOX PA for DC,24/05/2013,88000,"2,836.83",Revenue,IDOX Software Limited,17542
Chorley Borough Council,http://statistics.data.gov.uk/id/local-authority/30UE,Service Management & Support,1009,Streetscene & Leisure Contracts,Vehicle Trackers,30046,Direct Transport Costs,5016,Yearly lease rental charges for vehicle tracking system for Chorley Council at price quoted,01/05/2013,87849,815.80,Revenue,Investec Asset Finance Plc,53879
Chorley Borough Council,http://statistics.data.gov.uk/id/local-authority/30UE,Service Management & Support,1009,Streetscene & Leisure Contracts,Vehicle Trackers,30046,Direct Transport Costs,5016,Yearly lease rental charges for vehicle tracking system for Chorley Council at price quoted,01/05/2013,87850,795.80,Revenue,Investec Asset Finance Plc,53879
Chorley Borough Council,http://statistics.data.gov.uk/id/local-authority/30UE,Service Management & Support,1009,Streetscene & Leisure Contracts,Vehicle Trackers,30046,Direct Transport Costs,5016,Yearly lease rental charges for vehicle tracking system for Chorley Council at price quoted,29/05/2013,88163,795.80,Revenue,Investec Asset Finance Plc,53879
Chorley Borough Council,http://statistics.data.gov.uk/id/local-authority/30UE,Service Management & Support,1009,Streetscene & Leisure Contracts,Vehicle Trackers,30046,Direct Transport Costs,5016,Yearly lease rental charges for vehicle tracking system for Chorley Council at price quoted,29/05/2013,88733,795.80,Revenue,Investec Asset Finance Plc,53879
Chorley Borough Council,http://statistics.data.gov.uk/id/local-authority/30UE,Economic Development,1096,Economic Development,Grants To Other Organisations,40127,Grants and Subscriptions,5031,Starting in business,15/05/2013,88512,748.15,Revenue,NAME REDACTED ,59486
Chorley Borough Council,http://statistics.data.gov.uk/id/local-authority/30UE,Corporate Management,1008,Shared Service Arrangement,Premises Related Insurances,20068,Premises Related Insurance,5014,Liability Insurance,22/05/2013,88607,"15,568.75",Revenue,JLT Speciality Ltd,52747
Chorley Borough Council,http://statistics.data.gov.uk/id/local-authority/30UE,Service Management & Support,1009,Streetscene & Leisure Contracts,Supplies-Grounds Maintenance,40025,"Equipment, Furniture & Materia",5023,"1 roll of 900 mm Terran4 3.6x4``x1`` board",22/05/2013,88491,62.44,Revenue,John H Mayor & Sons Ltd,16635
Chorley Borough Council,http://statistics.data.gov.uk/id/local-authority/30UE,Service Management & Support,1009,Streetscene & Leisure Contracts,Supplies-Grounds Maintenance,40025,"Equipment, Furniture & Materia",5023,1 roll of menbrane,22/05/2013,88491,47.18,Revenue,John H Mayor & Sons Ltd,16635
Chorley Borough Council,http://statistics.data.gov.uk/id/local-authority/30UE,Service Management & Support,1009,Streetscene & Leisure Contracts,Supplies-Grounds Maintenance,40025,"Equipment, Furniture & Materia",5023,"8 x Concrete Posts 6`9``7 x 1ft rock face bases",22/05/2013,88491,197.97,Revenue,John H Mayor & Sons Ltd,16635
Chorley Borough Council,http://statistics.data.gov.uk/id/local-authority/30UE,Service Management & Support,1009,Streetscene & Leisure Contracts,Supplies-Grounds Maintenance,40025,"Equipment, Furniture & Materia",5023,"4 3.6m 150x50 52 900 150x50 5.6 3`` unipost6`` nail10mm line2 T 50 staples",22/05/2013,88491,134.57,Revenue,John H Mayor & Sons Ltd,16635
Chorley Borough Council,http://statistics.data.gov.uk/id/local-authority/30UE,Democratic Represent and  Mgnt,1007,Streetscene & Leisure Contracts,Grounds Maintenance Contractor,20043,Grounds Maintenance Costs,5013,40 @ 1.2m x 75mm x 75mm Birdsmouth kneerail post,22/05/2013,88491,111.20,Revenue,John H Mayor & Sons Ltd,16635
Chorley Borough Council,http://statistics.data.gov.uk/id/local-authority/30UE,Democratic Represent and  Mgnt,1007,Streetscene & Leisure Contracts,Grounds Maintenance Contractor,20043,Grounds Maintenance Costs,5013,40 @ 75mm kneerail straps,22/05/2013,88491,68.00,Revenue,John H Mayor & Sons Ltd,16635
Chorley Borough Council,http://statistics.data.gov.uk/id/local-authority/30UE,Democratic Represent and  Mgnt,1007,Streetscene & Leisure Contracts,Grounds Maintenance Contractor,20043,Grounds Maintenance Costs,5013,20 Bags of cement,22/05/2013,88491,65.00,Revenue,John H Mayor & Sons Ltd,16635
Chorley Borough Council,http://statistics.data.gov.uk/id/local-authority/30UE,Democratic Represent and  Mgnt,1007,Streetscene & Leisure Contracts,Grounds Maintenance Contractor,20043,Grounds Maintenance Costs,5013,10 tubs of Cuprinol timbercare ( 3 black and 7 rich oak ),22/05/2013,88491,63.76,Revenue,John H Mayor & Sons Ltd,16635
Chorley Borough Council,http://statistics.data.gov.uk/id/local-authority/30UE,Development Control,1091,Planning,Statutory Notices,40160,Miscellaneous Expenses,5034,Public Notices to appear in the Chorley Guardian April 2012 - March 2012,22/05/2013,88659,339.49,Revenue,Johnston Publishing Ltd,20072
Chorley Borough Council,http://statistics.data.gov.uk/id/local-authority/30UE,Democratic Represent and  Mgnt,1007,Streetscene & Leisure Contracts,Publicity - Advertising,40157,Miscellaneous Expenses,5034,One half page Astley wedding  advertisement Chorley Guardian,22/05/2013,88663,420.98,Revenue,Johnston Publishing Ltd,20072
Chorley Borough Council,http://statistics.data.gov.uk/id/local-authority/30UE,Corporate Management,1008,Streetscene & Leisure Contracts,External Contractor,40198,Miscellaneous Expenses,5034,"Central Heating installation for property at North Road Bretherton",01/05/2013,88323,"9,569.50",Revenue,K Berry Ltd,16421
Chorley Borough Council,http://statistics.data.gov.uk/id/local-authority/30UE,Control Accounts,Control,Shared Service Arrangement,General Balances,100,Balance Sheet,Balance,Month 1 - April,01/05/2013,88295,958.75,Revenue,Labour Councillors Association,17577
Chorley Borough Council,http://statistics.data.gov.uk/id/local-authority/30UE,Control Accounts,Control,Shared Service Arrangement,General Balances,100,Balance Sheet,Balance,Salary deductions - May,29/05/2013,88848,958.75,Revenue,Labour Councillors Association,17577
Chorley Borough Council,http://statistics.data.gov.uk/id/local-authority/30UE,Development Control,1091,Chief Executives Office,Stationery,40050,"Printing, Stationery & General",5026,"20,000 sheets letter headed paper",22/05/2013,88447,675.00,Revenue,Lancashire Business Forms Ltd,16665
Chorley Borough Council,http://statistics.data.gov.uk/id/local-authority/30UE,Capital,Capital,Streetscene & Leisure Contracts,Other Expenses,3030,Capital Expenditure,Capital,Public right of way closure,24/05/2013,88703,690.87,Capital,Lancashire County Council,17758
Chorley Borough Council,http://statistics.data.gov.uk/id/local-authority/30UE,Corporate Management,1008,Streetscene & Leisure Contracts,Clinical Waste Collection,50007,Private Contractors,5042,Disposal of clincal waste from households in Chorley.Yellow bag collections for F/Y 2012 ,10/05/2013,88264,"1,141.14",Revenue,Lancashire Teaching Hospitals NHS FT,19003
Chorley Borough Council,http://statistics.data.gov.uk/id/local-authority/30UE,Unapportionable Central OHeads,1009,HR & Org. Development,Service Fees,40056,Services,5027,Occupational Health Services,17/05/2013,88523,282.15,Revenue,Lancashire Teaching Hospitals NHS FT,19003
Chorley Borough Council,http://statistics.data.gov.uk/id/local-authority/30UE,Unapportionable Central OHeads,1009,HR & Org. Development,Service Fees,40056,Services,5027,Occupational Health,17/05/2013,88523,64.80,Revenue,Lancashire Teaching Hospitals NHS FT,19003
Chorley Borough Council,http://statistics.data.gov.uk/id/local-authority/30UE,Democratic Represent and  Mgnt,1007,Streetscene & Leisure Contracts,Grounds Maintenance Contractor,20043,Grounds Maintenance Costs,5013,Order 20 x  ENCHANTERS NIGHT SHADE; 30 X  MARSH WOUNDWORT; 6 ,22/05/2013,88730,300.00,Revenue,Landlife Wildflowers Limited,20961
Chorley Borough Council,http://statistics.data.gov.uk/id/local-authority/30UE,Housing Benefit Administration,1077,"Customer, ICT & Transactional",Printing,40043,"Printing, Stationery & General",5026,Benefits letter mailing,29/05/2013,88656,"2,281.37",Revenue,Latcham Direct Ltd,22594
Chorley Borough Council,http://statistics.data.gov.uk/id/local-authority/30UE,Parking Services,1066,Streetscene & Leisure Contracts,External Contractors,50008,Private Contractors,5042,enforcement and cash collection for off street car parks.,17/05/2013,88436,"4,742.03",Revenue,Legion Group,21973
Chorley Borough Council,http://statistics.data.gov.uk/id/local-authority/30UE,Local Tax Collection,1010,"Customer, ICT & Transactional",Publications,40054,"Printing, Stationery & General",5026,Ryde on Rating,31/05/2013,88573,289.45,Revenue,Lexis Nexis UK,16688
Chorley Borough Council,http://statistics.data.gov.uk/id/local-authority/30UE,Unapportionable Central OHeads,1009,Shared Service Arrangement,Consultants` Fees,40077,Services,5027,Chorley and New homes bonus,08/05/2013,88311,447.50,Revenue,LG Futures,22551
Chorley Borough Council,http://statistics.data.gov.uk/id/local-authority/30UE,Unapportionable Central OHeads,1009,Governance,External Contractors,50008,Private Contractors,5042,Core & Reactive,10/05/2013,88416,"41,633.47",Revenue,Liberata UK,20716
Chorley Borough Council,http://statistics.data.gov.uk/id/local-authority/30UE,Unapportionable Central OHeads,1009,Governance,External Contractors,50008,Private Contractors,5042,Management fee,10/05/2013,88416,"5,125.05",Revenue,Liberata UK,20716
Chorley Borough Council,http://statistics.data.gov.uk/id/local-authority/30UE,Unapportionable Central OHeads,1009,Governance,Asset Maintenance Fund,20012,Repairs Maintenance & Alts,5005,Work in progress - April 2013,29/05/2013,88592,"2,759.92",Revenue,Liberata UK,20716
Chorley Borough Council,http://statistics.data.gov.uk/id/local-authority/30UE,Unapportionable Central OHeads,1009,Governance,Asset Maintenance Fund,20012,Repairs Maintenance & Alts,5005,Improvement works to 28/04/2013,29/05/2013,88600,"26,423.06",Revenue,Liberata UK,20716
Chorley Borough Council,http://statistics.data.gov.uk/id/local-authority/30UE,Unapportionable Central OHeads,1009,Governance,Asset Maintenance Fund,20012,Repairs Maintenance & Alts,5005,Mar 2013 - Work in progress,29/05/2013,88783,"2,286.01",Revenue,Liberata UK,20716
Chorley Borough Council,http://statistics.data.gov.uk/id/local-authority/30UE,Unapportionable Central OHeads,1009,Governance,Asset Maintenance Fund,20012,Repairs Maintenance & Alts,5005,Pass through work,29/05/2013,88811,"16,587.76",Revenue,Liberata UK,20716
Chorley Borough Council,http://statistics.data.gov.uk/id/local-authority/30UE,Economic Development,1096,Economic Development,Publicity - Advertising,40157,Miscellaneous Expenses,5034,To provide a half page advert to appear in the special markets feature at the agreed price,31/05/2013,88799,250.00,Revenue,Loop Publishing Ltd,18770
Chorley Borough Council,http://statistics.data.gov.uk/id/local-authority/30UE,Planning Policy,1092,Planning,Other Fees,40212,Miscellaneous Expenses,5034,"CIL Public Examination 22, 23 and 24 April 2013 - 2 x Boardroom Hire",15/05/2013,88421,533.33,Revenue,Macdonald Hotels Receipt Account,59018
Chorley Borough Council,http://statistics.data.gov.uk/id/local-authority/30UE,Unapportionable Central OHeads,1009,Policy & Performance,Publicity - Advertising,40157,Miscellaneous Expenses,5034,Extra work as part of the new intranet as discussed with Andrew Daniels,29/05/2013,88819,865.69,Revenue,Mando Group,54728
Chorley Borough Council,http://statistics.data.gov.uk/id/local-authority/30UE,Homelessness,1075,HR & Org. Development,Agency Staff,13000,Direct Employee Expenses,5001,Peets Alexander PAYE Housing Options Officer SA58903 15.56,01/05/2013,88261,602.95,Revenue,Matrix SCM Ltd,22128
Chorley Borough Council,http://statistics.data.gov.uk/id/local-authority/30UE,Corporate Management,1008,HR & Org. Development,Agency Staff,13000,Direct Employee Expenses,5001,Evans Katie PAYE Environmental Health Officer SA60648 20.70,01/05/2013,88261,300.16,Revenue,Matrix SCM Ltd,22128
Chorley Borough Council,http://statistics.data.gov.uk/id/local-authority/30UE,Corporate Management,1008,HR & Org. Development,Agency Staff,13000,Direct Employee Expenses,5001,Evans Katie PAYE Environmental Health Officer SA60648 20.70,15/05/2013,88366,600.32,Revenue,Matrix SCM Ltd,22128
Chorley Borough Council,http://statistics.data.gov.uk/id/local-authority/30UE,Democratic Represent and  Mgnt,1007,HR & Org. Development,Agency Staff,13000,Direct Employee Expenses,5001,Berry Jean PAYE Senior Postal Vote SA62552 9.93,15/05/2013,88366,273.08,Revenue,Matrix SCM Ltd,22128
Chorley Borough Council,http://statistics.data.gov.uk/id/local-authority/30UE,Democratic Represent and  Mgnt,1007,HR & Org. Development,Agency Staff,13000,Direct Employee Expenses,5001,Al-Arabi Alison PAYE Postal Vote SA62558 8.36,15/05/2013,88366,154.66,Revenue,Matrix SCM Ltd,22128
Chorley Borough Council,http://statistics.data.gov.uk/id/local-authority/30UE,Democratic Represent and  Mgnt,1007,HR & Org. Development,Agency Staff,13000,Direct Employee Expenses,5001,Slater Mark PAYE Postal Vote SA62652 8.36,15/05/2013,88366,117.04,Revenue,Matrix SCM Ltd,22128
Chorley Borough Council,http://statistics.data.gov.uk/id/local-authority/30UE,Democratic Represent and  Mgnt,1007,HR & Org. Development,Agency Staff,13000,Direct Employee Expenses,5001,Leathwood Andrew PAYE Postal Vote SA62654 8.36,15/05/2013,88366,175.56,Revenue,Matrix SCM Ltd,22128
Chorley Borough Council,http://statistics.data.gov.uk/id/local-authority/30UE,Democratic Represent and  Mgnt,1007,HR & Org. Development,Agency Staff,13000,Direct Employee Expenses,5001,Leathwood Andrew PAYE Postal Vote SA62654 12.23,15/05/2013,88366,73.38,Revenue,Matrix SCM Ltd,22128
Chorley Borough Council,http://statistics.data.gov.uk/id/local-authority/30UE,Corporate Management,1008,HR & Org. Development,Agency Staff,13000,Direct Employee Expenses,5001,Evans Katie PAYE Environmental Health Officer SA60648 20.70,15/05/2013,88410,351.91,Revenue,Matrix SCM Ltd,22128
Chorley Borough Council,http://statistics.data.gov.uk/id/local-authority/30UE,Democratic Represent and  Mgnt,1007,HR & Org. Development,Agency Staff,13000,Direct Employee Expenses,5001,Nightingale Hannah PAYE Postal Vote SA62551 8.36,15/05/2013,88410,175.56,Revenue,Matrix SCM Ltd,22128
Chorley Borough Council,http://statistics.data.gov.uk/id/local-authority/30UE,Democratic Represent and  Mgnt,1007,HR & Org. Development,Agency Staff,13000,Direct Employee Expenses,5001,Nightingale Hannah PAYE Postal Vote SA62551 8.36,17/05/2013,88539,250.80,Revenue,Matrix SCM Ltd,22128
Chorley Borough Council,http://statistics.data.gov.uk/id/local-authority/30UE,Democratic Represent and  Mgnt,1007,HR & Org. Development,Agency Staff,13000,Direct Employee Expenses,5001,Berry Jean PAYE Senior Postal Vote SA62552 9.93,17/05/2013,88539,297.92,Revenue,Matrix SCM Ltd,22128
Chorley Borough Council,http://statistics.data.gov.uk/id/local-authority/30UE,Democratic Represent and  Mgnt,1007,HR & Org. Development,Agency Staff,13000,Direct Employee Expenses,5001,Al-Arabi Alison PAYE Postal Vote SA62558 8.36,17/05/2013,88539,250.80,Revenue,Matrix SCM Ltd,22128
Chorley Borough Council,http://statistics.data.gov.uk/id/local-authority/30UE,Democratic Represent and  Mgnt,1007,HR & Org. Development,Agency Staff,13000,Direct Employee Expenses,5001,Slater Mark PAYE Postal Vote SA62652 8.36,17/05/2013,88539,188.10,Revenue,Matrix SCM Ltd,22128
Chorley Borough Council,http://statistics.data.gov.uk/id/local-authority/30UE,Democratic Represent and  Mgnt,1007,HR & Org. Development,Agency Staff,13000,Direct Employee Expenses,5001,Leathwood Andrew PAYE Postal Vote SA62654 8.36,17/05/2013,88539,250.80,Revenue,Matrix SCM Ltd,22128
Chorley Borough Council,http://statistics.data.gov.uk/id/local-authority/30UE,Corporate Management,1008,HR & Org. Development,Agency Staff,13000,Direct Employee Expenses,5001,Evans Katie PAYE Environmental Health Officer SA60648 0.43,24/05/2013,88755,2.58,Revenue,Matrix SCM Ltd,22128
Chorley Borough Council,http://statistics.data.gov.uk/id/local-authority/30UE,Corporate Management,1008,HR & Org. Development,Agency Staff,13000,Direct Employee Expenses,5001,Evans Katie PAYE Environmental Health Officer SA60648 20.70,24/05/2013,88755,310.50,Revenue,Matrix SCM Ltd,22128
Chorley Borough Council,http://statistics.data.gov.uk/id/local-authority/30UE,Corporate Management,1008,HR & Org. Development,Agency Staff,13000,Direct Employee Expenses,5001,Evans Katie PAYE Environmental Health Officer SA60648 0.43,29/05/2013,88846,41.28,Revenue,Matrix SCM Ltd,22128
Chorley Borough Council,http://statistics.data.gov.uk/id/local-authority/30UE,Corporate Management,1008,HR & Org. Development,Agency Staff,13000,Direct Employee Expenses,5001,Evans Katie PAYE Environmental Health Officer SA60648 20.70,29/05/2013,88846,626.18,Revenue,Matrix SCM Ltd,22128
Chorley Borough Council,http://statistics.data.gov.uk/id/local-authority/30UE,Community Development,1097,Health Environment & Neighbourhoods,Community Develop Initiatives,40185,Miscellaneous Expenses,5034,"External Creature Cases - 1 x Butterfly in Red NBC/405026 259.00 Owl in Turquiose ",01/05/2013,88348,604.00,Revenue,Mirage Display & Exhibitions T/A Notice Board,21832
Chorley Borough Council,http://statistics.data.gov.uk/id/local-authority/30UE,Corporate Management,1008,Health Environment & Neighbourhoods,"Hackney Badges, Plates Etc.",40023,"Equipment, Furniture & Materia",5023,Mogo internal plate double sided with GLO 1 Side Private Hire,29/05/2013,88845,231.20,Revenue,Mogo UK,17187
Chorley Borough Council,http://statistics.data.gov.uk/id/local-authority/30UE,Corporate Management,1008,Health Environment & Neighbourhoods,"Hackney Badges, Plates Etc.",40023,"Equipment, Furniture & Materia",5023,MOGO Internal plate double sided with GLO 1 side.  Hackney Carriage,29/05/2013,88845,57.80,Revenue,Mogo UK,17187
Chorley Borough Council,http://statistics.data.gov.uk/id/local-authority/30UE,Corporate Management,1008,Health Environment & Neighbourhoods,"Hackney Badges, Plates Etc.",40023,"Equipment, Furniture & Materia",5023,Postage,29/05/2013,88845,14.90,Revenue,Mogo UK,17187
Chorley Borough Council,http://statistics.data.gov.uk/id/local-authority/30UE,Planning Policy,1092,Planning,Professional Fees,40063,Services,5027,"LDF CIL Programme Officer  for the period February - April 2013 excluding expenses",22/05/2013,88658,"1,500.07",Revenue,NAME REDACTED,47131
Chorley Borough Council,http://statistics.data.gov.uk/id/local-authority/30UE,Planning Policy,1092,Planning,Legal Fees,40171,Miscellaneous Expenses,5034,"Chorley Local Plan Public Inquiry 13 Febraury 2013 - Advising in conference ",01/05/2013,88346,"2,587.50",Revenue,NAME REDACTED,19968
Chorley Borough Council,http://statistics.data.gov.uk/id/local-authority/30UE,Planning Policy,1092,Planning,Legal Fees,40171,Miscellaneous Expenses,5034,Chorley Local Plan Advising in conference Reviewing documents and advising ,22/05/2013,88660,"12,200.00",Revenue,NAME REDACTED,19968
Chorley Borough Council,http://statistics.data.gov.uk/id/local-authority/30UE,Unapportionable Central OHeads,1009,Governance,Legal Fees,40171,Miscellaneous Expenses,5034,"Professional fees of Nicolas Jackson Land at Rydal House,Considered papers and auth",22/05/2013,88677,800.00,Revenue,NAME REDACTED,59491
Chorley Borough Council,http://statistics.data.gov.uk/id/local-authority/30UE,Service Management & Support,1009,Streetscene & Leisure Contracts,Tools & Equipment - Maintenance,40005,"Equipment, Furniture & Materia",5023,Carryout full winter service and regrind of 2 x bowling green machines as required,01/05/2013,88361,342.92,Revenue,MW Grass Machinery,21616
Chorley Borough Council,http://statistics.data.gov.uk/id/local-authority/30UE,Service Management & Support,1009,Streetscene & Leisure Contracts,Tools & Equipment - Maintenance,40005,"Equipment, Furniture & Materia",5023,Carryout full winter service and regrind of 2 x bowling green machines as required,01/05/2013,88362,342.92,Revenue,MW Grass Machinery,21616
Chorley Borough Council,http://statistics.data.gov.uk/id/local-authority/30UE,Corporate Management,1008,Health Environment & Neighbourhoods,Veterinary Fees Etc,40074,Services,5027,Professional vet services,31/05/2013,88459,250.00,Revenue,Myerscough Veterinary Group,56978
Chorley Borough Council,http://statistics.data.gov.uk/id/local-authority/30UE,Unapportionable Central OHeads,1009,Streetscene & Leisure Contracts,Refuse Collection,20037,Cleaning and Domestic Supplies,5012,Green waste,22/05/2013,88407,453.32,Revenue,Neales Waste Management,17583
Chorley Borough Council,http://statistics.data.gov.uk/id/local-authority/30UE,Community Development,1097,Streetscene & Leisure Contracts,Refuse Collection,20037,Cleaning and Domestic Supplies,5012,"Skip Hire for Community Clean Up At Croston Saturday 13th April 20139.30 - 1pm",17/05/2013,88625,684.88,Revenue,Neales Waste Management,17583
Chorley Borough Council,http://statistics.data.gov.uk/id/local-authority/30UE,Community Development,1097,Health Environment & Neighbourhoods,Refuse Collection,20037,Cleaning and Domestic Supplies,5012,Skip hire 35 yard skip - eccleston Community Clean Up,17/05/2013,88626,796.88,Revenue,Neales Waste Management,17583
Chorley Borough Council,http://statistics.data.gov.uk/id/local-authority/30UE,Unapportionable Central OHeads,1009,Streetscene & Leisure Contracts,Refuse Collection,20037,Cleaning and Domestic Supplies,5012,trade wast begnal st,17/05/2013,88632,336.00,Revenue,Neales Waste Management,17583
Chorley Borough Council,http://statistics.data.gov.uk/id/local-authority/30UE,Unapportionable Central OHeads,1009,Streetscene & Leisure Contracts,Refuse Collection,20037,Cleaning and Domestic Supplies,5012,bengal street,17/05/2013,88633,587.52,Revenue,Neales Waste Management,17583
Chorley Borough Council,http://statistics.data.gov.uk/id/local-authority/30UE,Democratic Represent and  Mgnt,1007,Governance,Processional Routes,40177,Miscellaneous Expenses,5034,"Account number: 0004889478.White Palmar table cloths 70x70 - CE697-WH",08/05/2013,88396,431.70,Revenue,Nisbets PLC,19593
Chorley Borough Council,http://statistics.data.gov.uk/id/local-authority/30UE,Democratic Represent and  Mgnt,1007,Governance,Processional Routes,40177,Miscellaneous Expenses,5034,"Account number: 0004889478.White Palmar table cloths 90x90 - CE698-WH",08/05/2013,88396,280.68,Revenue,Nisbets PLC,19593
Chorley Borough Council,http://statistics.data.gov.uk/id/local-authority/30UE,Democratic Represent and  Mgnt,1007,Governance,Processional Routes,40177,Miscellaneous Expenses,5034,"Account number: 0004889478.Polished stainless steel table number stand (12``) - P344",08/05/2013,88396,237.36,Revenue,Nisbets PLC,19593
Chorley Borough Council,http://statistics.data.gov.uk/id/local-authority/30UE,Capital,Capital,Economic Development,Other Capital Grants/Loans,3000,Capital Expenditure,Capital,CCL grant,17/05/2013,88601,"1,264.58",Capital,Northcotes Hair,57324
Chorley Borough Council,http://statistics.data.gov.uk/id/local-authority/30UE,Housing Strategy,1069,Housing,General Subscriptions,40146,Grants and Subscriptions,5031,Full Membership to Northern Housing Consortium for the period 1 April 2013 to 31 March 2014,15/05/2013,88546,885.00,Revenue,Northern Housing Consortium Ltd,17220
Chorley Borough Council,http://statistics.data.gov.uk/id/local-authority/30UE,Service Management & Support,1009,Streetscene & Leisure Contracts,Supplies & Consumables -Street Cleansing,40235,"Equipment, Furniture & Materia",5023,Supply recycle Polly brushes for for Schmidt Swingo 250,22/05/2013,88705,252.90,Revenue,Northern Municipal Spares Ltd,17752
Chorley Borough Council,http://statistics.data.gov.uk/id/local-authority/30UE,Service Management & Support,1009,Streetscene & Leisure Contracts,Supplies & Consumables -Street Cleansing,40235,"Equipment, Furniture & Materia",5023,Supply 4 row wire brushes for Johnston VT650,22/05/2013,88705,162.96,Revenue,Northern Municipal Spares Ltd,17752
Chorley Borough Council,http://statistics.data.gov.uk/id/local-authority/30UE,Service Management & Support,1009,Streetscene & Leisure Contracts,Supplies & Consumables -Street Cleansing,40235,"Equipment, Furniture & Materia",5023,Supply polly wire mix brushes for Schmidt Swingo 250,22/05/2013,88705,189.63,Revenue,Northern Municipal Spares Ltd,17752
Chorley Borough Council,http://statistics.data.gov.uk/id/local-authority/30UE,Unapportionable Central OHeads,1009,HR & Org. Development,Corp Training Organisational Development,17006,Indirect Employee Expenses,5002,Staff Survey 2013,22/05/2013,88636,"3,095.00",Revenue,NWA Social & Market Research Limited,20931
Chorley Borough Council,http://statistics.data.gov.uk/id/local-authority/30UE,Unapportionable Central OHeads,1009,HR & Org. Development,Legal Fees,40171,Miscellaneous Expenses,5034,Mediation,01/05/2013,88271,921.50,Revenue,Nwlaeo,17571
Chorley Borough Council,http://statistics.data.gov.uk/id/local-authority/30UE,Unapportionable Central OHeads,1009,HR & Org. Development,Corp Training Organisational Development,17006,Indirect Employee Expenses,5002,Advisory Service - Spiral Dynamics - 19/04/13,22/05/2013,88584,750.00,Revenue,Nwlaeo,17571
Chorley Borough Council,http://statistics.data.gov.uk/id/local-authority/30UE,Service Management & Support,1009,Streetscene & Leisure Contracts,Supplies-Grounds Maintenance,40025,"Equipment, Furniture & Materia",5023,"Summer Bedding, supply as per tender",29/05/2013,88823,"4,612.16",Revenue,Pentland Plants,16366
Chorley Borough Council,http://statistics.data.gov.uk/id/local-authority/30UE,Service Management & Support,1009,Streetscene & Leisure Contracts,Supplies-Grounds Maintenance,40025,"Equipment, Furniture & Materia",5023,"Summer Bedding, supply as per tender",29/05/2013,88824,"3,412.56",Revenue,Pentland Plants,16366
Chorley Borough Council,http://statistics.data.gov.uk/id/local-authority/30UE,Planning Policy,1092,Planning,Consultants` Fees,40077,Services,5027,CENTRAL LANCASHIRE CIL STAGE 3 - support through to Examination,24/05/2013,88423,"8,415.00",Revenue,Peter Brett Associates LLp,48733
Chorley Borough Council,http://statistics.data.gov.uk/id/local-authority/30UE,Corporate Management,1008,Health Environment & Neighbourhoods,External Contractor,40198,Miscellaneous Expenses,5034,50 weeks @ 330.00 for 2013/14,01/05/2013,88350,311.75,Revenue,Peter L Johnson,16727
Chorley Borough Council,http://statistics.data.gov.uk/id/local-authority/30UE,Corporate Management,1008,Health Environment & Neighbourhoods,External Contractor,40198,Miscellaneous Expenses,5034,50 weeks @ 330.00 for 2013/14,15/05/2013,88508,311.75,Revenue,Peter L Johnson,16727
Chorley Borough Council,http://statistics.data.gov.uk/id/local-authority/30UE,Corporate Management,1008,Health Environment & Neighbourhoods,External Contractor,40198,Miscellaneous Expenses,5034,Pest Control,22/05/2013,88751,311.75,Revenue,Peter L Johnson,16727
Chorley Borough Council,http://statistics.data.gov.uk/id/local-authority/30UE,Corporate Management,1008,Health Environment & Neighbourhoods,External Contractor,40198,Miscellaneous Expenses,5034,50 weeks @ 330.00 for 2013/14,31/05/2013,88878,311.75,Revenue,Peter L Johnson,16727
Chorley Borough Council,http://statistics.data.gov.uk/id/local-authority/30UE,Parking Services,1066,"Customer, ICT & Transactional",Professional Fees,40063,Services,5027,Returned bailff case for NAME REDACTED CY02093535,03/05/2013,88334,720.00,Revenue,Phoenix Commercial Collections Ltd,19189
Chorley Borough Council,http://statistics.data.gov.uk/id/local-authority/30UE,Service Management & Support,1009,Streetscene & Leisure Contracts,Diesel/Derv,30007,Direct Transport Costs,5016,Supply 5000 litres of white diesel to be delivered to Bengal St Depot fuel station,01/05/2013,88319,"5,545.00",Revenue,Pilkington Oils,18075
Chorley Borough Council,http://statistics.data.gov.uk/id/local-authority/30UE,Service Management & Support,1009,Streetscene & Leisure Contracts,Supplies-Grounds Maintenance,40025,"Equipment, Furniture & Materia",5023,Supply 205litres of hydraulic oil type Telus 46 to be delivered to Bengal St Depot,22/05/2013,88768,299.30,Revenue,Pilkington Oils,18075
Chorley Borough Council,http://statistics.data.gov.uk/id/local-authority/30UE,Service Management & Support,1009,Streetscene & Leisure Contracts,Supplies-Grounds Maintenance,40025,"Equipment, Furniture & Materia",5023,Suplly box of 36 grease cartridges to be delivered to Bengal St depot,22/05/2013,88768,60.12,Revenue,Pilkington Oils,18075
Chorley Borough Council,http://statistics.data.gov.uk/id/local-authority/30UE,Service Management & Support,1009,Streetscene & Leisure Contracts,Supplies-Grounds Maintenance,40025,"Equipment, Furniture & Materia",5023,Supply 2 x 20 litres drums of 2 stroke oil to be delivered to Bengal St depot,22/05/2013,88768,118.40,Revenue,Pilkington Oils,18075
Chorley Borough Council,http://statistics.data.gov.uk/id/local-authority/30UE,Elections,1012,Governance,Rent/Hire Of Premises,20017,Premises Rents,5007,"Hire of cabin with two tables, two chairs and ramp to be delivered Tuesday 30th April 2013.",22/05/2013,88477,835.00,Revenue,Portakabin Limited,51521
Chorley Borough Council,http://statistics.data.gov.uk/id/local-authority/30UE,Economic Development,1096,HR & Org. Development,Training Course Fees,17010,Indirect Employee Expenses,5002,Customer Care (Markets) Course held on 17 April 2013,15/05/2013,88377,495.00,Revenue,Potential Unearthed,22243
Chorley Borough Council,http://statistics.data.gov.uk/id/local-authority/30UE,Development Control,1091,HR & Org. Development,Training Course Fees,17010,Indirect Employee Expenses,5002,Customer Care Skills (Planning) Course - 3 x half day modules,15/05/2013,88378,495.00,Revenue,Potential Unearthed,22243
Chorley Borough Council,http://statistics.data.gov.uk/id/local-authority/30UE,Unapportionable Central OHeads,1009,Chief Executives Office,Photocopier Consumables,40049,"Printing, Stationery & General",5026,"Evolution Business, A4 80gsm box 2500",24/05/2013,88761,518.00,Revenue,Premier Paper Group,54451
Chorley Borough Council,http://statistics.data.gov.uk/id/local-authority/30UE,Unapportionable Central OHeads,1009,Chief Executives Office,Photocopier Consumables,40049,"Printing, Stationery & General",5026,"Evolution Everyday A4 80gsm, Box 2500",24/05/2013,88762,461.00,Revenue,Premier Paper Group,54451
Chorley Borough Council,http://statistics.data.gov.uk/id/local-authority/30UE,Unapportionable Central OHeads,1009,Chief Executives Office,Photocopier Consumables,40049,"Printing, Stationery & General",5026,PRO-DESIGN WHITE CARD - 250 GMS,24/05/2013,88762,67.44,Revenue,Premier Paper Group,54451
Chorley Borough Council,http://statistics.data.gov.uk/id/local-authority/30UE,Unapportionable Central OHeads,1009,Shared Service Arrangement,Refreshments,40036,Catering,5024,Water Bottles,22/05/2013,88680,371.85,Revenue,Pressure Coolers Ltd T/A Maestro International Ltd,19767
Chorley Borough Council,http://statistics.data.gov.uk/id/local-authority/30UE,Private Sector HSG Renewal,1073,Housing,Miscellaneous Expenses,40200,Miscellaneous Expenses,5034,Energy surveys carried out on behalf of the Council,22/05/2013,88736,800.00,Revenue,Preston Care and Repair,50018
Chorley Borough Council,http://statistics.data.gov.uk/id/local-authority/30UE,Corporate Management,1008,Streetscene & Leisure Contracts,External Contractor,40198,Miscellaneous Expenses,5034,Boiler service/maintenance checks @ 100 per service - for the Warm Homes Healthy ,22/05/2013,88747,600.00,Revenue,Preston Care and Repair,50018
Chorley Borough Council,http://statistics.data.gov.uk/id/local-authority/30UE,Corporate Management,1008,Streetscene & Leisure Contracts,External Contractor,40198,Miscellaneous Expenses,5034,Boiler service/maintenance checks @ 100 per service - for the Warm Homes Healthy,22/05/2013,88765,900.00,Revenue,Preston Care and Repair,50018
Chorley Borough Council,http://statistics.data.gov.uk/id/local-authority/30UE,Planning Policy,1092,Planning,General Subscriptions,40146,Grants and Subscriptions,5031,Local Plan Learning Group April 2012 - March 2013,22/05/2013,88527,483.33,Revenue,Preston City Council,16657
Chorley Borough Council,http://statistics.data.gov.uk/id/local-authority/30UE,Planning Policy,1092,Planning,General Subscriptions,40146,Grants and Subscriptions,5031,CIL And Infrastructure Planning Group,22/05/2013,88553,500.00,Revenue,Preston City Council,16657
Chorley Borough Council,http://statistics.data.gov.uk/id/local-authority/30UE,Elections,1012,Governance,Printing,40043,"Printing, Stationery & General",5026,Polling Station Ballot Books for Lancashire County Council Elections,22/05/2013,88696,"6,735.09",Revenue,Print Image Network,21171
Chorley Borough Council,http://statistics.data.gov.uk/id/local-authority/30UE,Elections,1012,Governance,Printing,40043,"Printing, Stationery & General",5026,Postal Vote Packs for Lancashire County Council Elections,22/05/2013,88737,"16,651.57",Revenue,Print Image Network,21171
Chorley Borough Council,http://statistics.data.gov.uk/id/local-authority/30UE,Democratic Represent and  Mgnt,1007,Streetscene & Leisure Contracts,Lifelong Learning Activities,40194,Miscellaneous Expenses,5034,5 x Henley A4 Ringbinder Menu Board as sold,15/05/2013,88544,451.91,Revenue,Print on Demand Limited - POD Exhibitions,58684
Chorley Borough Council,http://statistics.data.gov.uk/id/local-authority/30UE,Homelessness,1075,Housing,External Contractor,40198,Miscellaneous Expenses,5034,Concierge service at Cotswold Supported Housing,22/05/2013,88639,"4,336.00",Revenue,Profile Security Ltd,58000
Chorley Borough Council,http://statistics.data.gov.uk/id/local-authority/30UE,Homelessness,1075,Housing,External Contractor,40198,Miscellaneous Expenses,5034,Concierge service at Cotswold Supported Housing,22/05/2013,88640,"4,602.22",Revenue,Profile Security Ltd,58000
Chorley Borough Council,http://statistics.data.gov.uk/id/local-authority/30UE,Homelessness,1075,Housing,External Contractor,40198,Miscellaneous Expenses,5034,Concierge service at Cotswold Supported Housing,22/05/2013,88641,"4,018.84",Revenue,Profile Security Ltd,58000
Chorley Borough Council,http://statistics.data.gov.uk/id/local-authority/30UE,Economic Development,1096,Economic Development,Grants To Other Organisations,40127,Grants and Subscriptions,5031,Starting in business grant,15/05/2013,88511,250.00,Revenue,NAME REDACTED,56400
Chorley Borough Council,http://statistics.data.gov.uk/id/local-authority/30UE,Building Control,1090,Planning,General Subscriptions,40146,Grants and Subscriptions,5031,SNAP Lite subscription and annual support renewal ,10/05/2013,88425,695.00,Revenue,Resolution Data Management Ltd,48223
Chorley Borough Council,http://statistics.data.gov.uk/id/local-authority/30UE,Service Management & Support,1009,Streetscene & Leisure Contracts,Supplies-Grounds Maintenance,40025,"Equipment, Furniture & Materia",5023,20x 5 ltr tubs of Trustee Amenity chemical,01/05/2013,88309,530.00,Revenue,Rigby Taylor Ltd,16299
Chorley Borough Council,http://statistics.data.gov.uk/id/local-authority/30UE,Service Management & Support,1009,Streetscene & Leisure Contracts,Purchase of Plant,40000,"Equipment, Furniture & Materia",5023,Supply weed spraying quad as per your spexcification and price quoted,01/05/2013,88310,"5,400.00",Revenue,Rigby Taylor Ltd,16299
Chorley Borough Council,http://statistics.data.gov.uk/id/local-authority/30UE,Service Management & Support,1009,Streetscene & Leisure Contracts,Supplies-Grounds Maintenance,40025,"Equipment, Furniture & Materia",5023,20 tubs of Trustee Amenity 5 tubs of mascot impact,22/05/2013,88748,630.00,Revenue,Rigby Taylor Ltd,16299
Chorley Borough Council,http://statistics.data.gov.uk/id/local-authority/30UE,Democratic Represent and  Mgnt,1007,Health Environment & Neighbourhoods,Children's Activities,40188,Miscellaneous Expenses,5034,Delivery of Fencing coaching and event management,24/05/2013,88732,"1,000.00",Revenue,Rivington Park Fencing Club,53421
Chorley Borough Council,http://statistics.data.gov.uk/id/local-authority/30UE,Elections,1012,Governance,Postages,40082,Communication and Computing,5028,"Lancashire CC Poll Cards for Anglezarke, Rivington, Brindle1, Brindle 2=907 cards",15/05/2013,88443,281.17,Revenue,Royal Mail Group Plc,17522
Chorley Borough Council,http://statistics.data.gov.uk/id/local-authority/30UE,Elections,1012,Governance,Postages,40082,Communication and Computing,5028,"Postal Votes for Lancashire CC Elections 1st Mailing x 22,4332 mailing, x 236",15/05/2013,88445,"8,996.49",Revenue,Royal Mail Group Plc,17522
Chorley Borough Council,http://statistics.data.gov.uk/id/local-authority/30UE,Elections,1012,Governance,Postages,40082,Communication and Computing,5028,Postal Vote returns for Lancashire County Council Elections,15/05/2013,88473,"4,555.12",Revenue,Royal Mail Group Plc,17522
Chorley Borough Council,http://statistics.data.gov.uk/id/local-authority/30UE,Elections,1012,Governance,Postages,40082,Communication and Computing,5028,Responce plus service,22/05/2013,88679,"1,075.88",Revenue,Royal Mail Group Plc,17522
Chorley Borough Council,http://statistics.data.gov.uk/id/local-authority/30UE,Democratic Represent and  Mgnt,1007,Health Environment & Neighbourhoods,Promotional Expenses,40159,Miscellaneous Expenses,5034,"To provide sportivate promotion items including bags, bottles and wristbands as directed ",29/05/2013,88723,510.15,Revenue,Running Imp,20636
Chorley Borough Council,http://statistics.data.gov.uk/id/local-authority/30UE,Economic Development,1096,Policy & Performance,Other Contributions,40145,Grants and Subscriptions,5031,Employment Support,10/05/2013,88413,"22,500.00",Revenue,Runshaw College,17997
Chorley Borough Council,http://statistics.data.gov.uk/id/local-authority/30UE,Control Accounts,Control,Shared Service Arrangement,General Balances,100,Balance Sheet,Balance,Insurance,22/05/2013,88342,406.76,Revenue,Sam Bird Motorbodies,20116
Chorley Borough Council,http://statistics.data.gov.uk/id/local-authority/30UE,Unapportionable Central OHeads,1009,HR & Org. Development,Corp Training Organisational Development,17006,Indirect Employee Expenses,5002,Training course - Dealing with Emotional People in Difficult Situations held on 18 April 2013,24/05/2013,88758,"2,150.00",Revenue,Samaritans,59325
Chorley Borough Council,http://statistics.data.gov.uk/id/local-authority/30UE,Service Management & Support,1009,Streetscene & Leisure Contracts,Diesel/Derv,30007,Direct Transport Costs,5016,Supply 8000litres of road diesel to be delivered to Bengal StDepot on 20/05/2013 ,29/05/2013,88831,"8,906.89",Revenue,Samuel Cooke & Co Ltd,17173
Chorley Borough Council,http://statistics.data.gov.uk/id/local-authority/30UE,Service Management & Support,1009,Streetscene & Leisure Contracts,Diesel/Derv,30007,Direct Transport Costs,5016,Supply 3000 litres of red diesel to be delivered to Bengal St depot on 20/05/2013 ,29/05/2013,88832,"1,953.65",Revenue,Samuel Cooke & Co Ltd,17173
Chorley Borough Council,http://statistics.data.gov.uk/id/local-authority/30UE,Service Management & Support,1009,Shared Service Arrangement,Transport Operating Leases,30029,Contrct Hire & Operating Lease,5018,2mth lease extension of PN04 XSP from 30-04-13 to 30-06-13,08/05/2013,88404,292.00,Revenue,SG EQUIPMENT FINANCE LTD,18156
Chorley Borough Council,http://statistics.data.gov.uk/id/local-authority/30UE,Service Management & Support,1009,Streetscene & Leisure Contracts,Leasing of Plant,40002,"Equipment, Furniture & Materia",5023,Extension of PL54 COJ from 30th May 13 to 30th May 14,15/05/2013,88557,750.00,Revenue,SG EQUIPMENT FINANCE LTD,18156
Chorley Borough Council,http://statistics.data.gov.uk/id/local-authority/30UE,Homelessness,1075,Housing,Training Course Fees,17010,Indirect Employee Expenses,5002,Delivery and expenses for Universal Credit and Benefit Reform seminar on 26 April 2013,15/05/2013,88313,"1,010.00",Revenue,Shelter Training,21902
Chorley Borough Council,http://statistics.data.gov.uk/id/local-authority/30UE,Unapportionable Central OHeads,1009,"Customer, ICT & Transactional",Consultants` Fees,40077,Services,5027,ICT consultancy work - April (17 days)To be paid on daily basis Apr13-June13 at 16 per hr,10/05/2013,88360,"1,972.00",Revenue,Simon Daniel Booth,57624
Chorley Borough Council,http://statistics.data.gov.uk/id/local-authority/30UE,Economic Development,1096,Economic Development,Grants To Other Organisations,40127,Grants and Subscriptions,5031,Business Rate Subsidy 3rd tranche,08/05/2013,88351,491.81,Revenue,Skewers Chorley,56621
Chorley Borough Council,http://statistics.data.gov.uk/id/local-authority/30UE,Capital,Capital,Governance,Main Contractor,3007,Capital Expenditure,Capital,"Work carried out at the White Hart, Mealhouse Lane, Chorley up to 31 March 2013",17/05/2013,88579,"5,355.02",Capital,Speakman Contractors Ltd,54838
Chorley Borough Council,http://statistics.data.gov.uk/id/local-authority/30UE,Capital,Capital,Housing,Main Contractor,3007,Capital Expenditure,Capital,DFG refurbishment works and internal door replacements - Interim Certificate No 2,24/05/2013,88699,"36,068.30",Capital,Speakman Contractors Ltd,54838
Chorley Borough Council,http://statistics.data.gov.uk/id/local-authority/30UE,Capital,Capital,Governance,Main Contractor,3007,Capital Expenditure,Capital,"The White HartInternal and external refurbishment works",22/05/2013,88763,"89,022.24",Capital,Speakman Contractors Ltd,54838
Chorley Borough Council,http://statistics.data.gov.uk/id/local-authority/30UE,Democratic Represent and  Mgnt,1007,Health Environment & Neighbourhoods,Children's Activities,40188,Miscellaneous Expenses,5034,"Delivery of three sporthall athletics events on April 23rd, April 24th and May 1st",01/05/2013,88318,800.00,Revenue,Sportshall Associates Ltd,52274
Chorley Borough Council,http://statistics.data.gov.uk/id/local-authority/30UE,Corporate Management,1008,Health Environment & Neighbourhoods,External Contractor,40198,Miscellaneous Expenses,5034,Project 26 - Scrape off and level at rear of ADDRESS REDACTED,01/05/2013,88161,300.00,Revenue,Stafford Estates LTD,22541
Chorley Borough Council,http://statistics.data.gov.uk/id/local-authority/30UE,Democratic Represent and  Mgnt,1007,Streetscene & Leisure Contracts,Grounds Maintenance Contractor,20043,Grounds Maintenance Costs,5013,Car Park resurfacing work and associated drainage scheme and landscaping Yarrow Valley,15/05/2013,88460,"11,987.50",Revenue,Stafford Estates LTD,22541
Chorley Borough Council,http://statistics.data.gov.uk/id/local-authority/30UE,Service Management & Support,1009,Streetscene & Leisure Contracts,Vehicle Maintenance,30045,Direct Transport Costs,5016,Supply and fit reconditioned recycle water pump on AE55HKK as required,10/05/2013,88478,486.08,Revenue,Stoat Sweepers and Gritters,22421
Chorley Borough Council,http://statistics.data.gov.uk/id/local-authority/30UE,Capital,Capital,Streetscene & Leisure Contracts,Equipment,3014,Capital Expenditure,Capital,item = RR55SGRN  Kerbside Box + Ergo Handle. 55 litre Green.,17/05/2013,88277,"2,761.50",Capital,Straight Plc,17633
Chorley Borough Council,http://statistics.data.gov.uk/id/local-authority/30UE,Capital,Capital,Streetscene & Leisure Contracts,Equipment,3014,Capital Expenditure,Capital,PRINTKBX artwork for Kerbside Box : CHOR01004 - existing - white - one long side,17/05/2013,88277,157.50,Capital,Straight Plc,17633
Chorley Borough Council,http://statistics.data.gov.uk/id/local-authority/30UE,Capital,Capital,Streetscene & Leisure Contracts,Equipment,3014,Capital Expenditure,Capital,Wheeled Bin Caddy 40litre  Black ReproBluInsert. CLEA01024P - existing - white,31/05/2013,88759,"4,777.50",Capital,Straight Plc,17633
Chorley Borough Council,http://statistics.data.gov.uk/id/local-authority/30UE,Capital,Capital,Governance,Main Contractor,3007,Capital Expenditure,Capital,Retention Moner,17/05/2013,88446,"1,532.78",Capital,Stringfellow Bldg Cntrctrs Ltd,17893
Chorley Borough Council,http://statistics.data.gov.uk/id/local-authority/30UE,Elections,1012,Governance,Rent/Hire Of Premises,20017,Premises Rents,5007,LCC Elections on 2nd May 2013: Floor covering at St Mary`s Parish Centre ,17/05/2013,88492,900.00,Revenue,Stringfellow Bldg Cntrctrs Ltd,17893
Chorley Borough Council,http://statistics.data.gov.uk/id/local-authority/30UE,Unapportionable Central OHeads,1009,Governance,Mayors Medals,40029,"Equipment, Furniture & Materia",5023,Mayor`s official portrait (John Walker 2013-14),17/05/2013,88614,360.00,Revenue,Studio Twelve,17895
Chorley Borough Council,http://statistics.data.gov.uk/id/local-authority/30UE,Democratic Represent and  Mgnt,1007,Governance,Fixtures & Fittings - Purchase,20027,Fixtures and Fittings,5010,"Austin Tub Chairs @ 212.00 (50% - 106) Inside: Sekers Orzan 0238",01/05/2013,88315,"2,430.00",Revenue,Style Matters Ltd,59239
Chorley Borough Council,http://statistics.data.gov.uk/id/local-authority/30UE,Democratic Represent and  Mgnt,1007,Governance,Fixtures & Fittings - Purchase,20027,Fixtures and Fittings,5010,50% balance for Lancastrian bar furniture,15/05/2013,88536,"2,430.00",Revenue,Style Matters Ltd,59239
Chorley Borough Council,http://statistics.data.gov.uk/id/local-authority/30UE,Democratic Represent and  Mgnt,1007,Streetscene & Leisure Contracts,Playground Equipment,40008,"Equipment, Furniture & Materia",5023,Coal Mining Inv: (BGS and Coal Authority).  Prepare standard interpretative report.  ,10/05/2013,88227,"2,350.00",Revenue,Sub Surface North West Limited,55367
Chorley Borough Council,http://statistics.data.gov.uk/id/local-authority/30UE,Housing Benefit Administration,1077,"Customer, ICT & Transactional",General Subscriptions,40146,Grants and Subscriptions,5031,NAFN membership for 2013/14 (Chorley only),22/05/2013,88653,"1,462.00",Revenue,Tameside MBC,19554
Chorley Borough Council,http://statistics.data.gov.uk/id/local-authority/30UE,Unapportionable Central OHeads,1009,Chief Executives Office,General Subscriptions,40146,Grants and Subscriptions,5031,INETWORK SUBSCRIPTION FEE,22/05/2013,88654,"1,000.00",Revenue,Tameside MBC,19554
Chorley Borough Council,http://statistics.data.gov.uk/id/local-authority/30UE,Elections,1012,Governance,Training Course Fees,17010,Indirect Employee Expenses,5002,Planning for the introduction of Individual Electoral Registration ,22/05/2013,88675,354.00,Revenue,The Association Of Electoral Administrators,16344
Chorley Borough Council,http://statistics.data.gov.uk/id/local-authority/30UE,Unapportionable Central OHeads,1009,Governance,IT Software - Annual Licences,40101,Communication and Computing,5028,CLA - Public Admin Licence (LA E&W)Public Admin rate (Professional Employees),17/05/2013,88582,"1,196.00",Revenue,The Copyright Licensing Agency Ltd,17480
Chorley Borough Council,http://statistics.data.gov.uk/id/local-authority/30UE,Democratic Represent and  Mgnt,1007,Governance,General Subscriptions,40146,Grants and Subscriptions,5031,Data Register Renewal,17/05/2013,88599,525.00,Revenue,The Information Commissioner,16278
Chorley Borough Council,http://statistics.data.gov.uk/id/local-authority/30UE,Democratic Represent and  Mgnt,1007,Governance,Printing of Year Book,40045,"Printing, Stationery & General",5026,163 Year Book & Diary 2013/14 as per your quote E No6595,22/05/2013,88708,854.70,Revenue,The Print Quarter,17987
Chorley Borough Council,http://statistics.data.gov.uk/id/local-authority/30UE,Democratic Represent and  Mgnt,1007,Streetscene & Leisure Contracts,Tools & Equipment - Purchase,40003,"Equipment, Furniture & Materia",5023,"2nr Cage Base (code 81590),  4nr Cage Extension (Code81595), 1nr Runner Bean Frame",22/05/2013,88655,334.13,Revenue,Tildenet Ltd  trading as Agriframes,59517
Chorley Borough Council,http://statistics.data.gov.uk/id/local-authority/30UE,Service Management & Support,1009,Streetscene & Leisure Contracts,External Contractor,40198,Miscellaneous Expenses,5034,Carryout tree works at ADDRESS REDACTED,15/05/2013,88510,360.00,Revenue,Treescape North West Ltd,17688
Chorley Borough Council,http://statistics.data.gov.uk/id/local-authority/30UE,Service Management & Support,1009,Streetscene & Leisure Contracts,External Contractor,40198,Miscellaneous Expenses,5034,Carryout tree works at ADDRESS REDACTED,15/05/2013,88510,270.00,Revenue,Treescape North West Ltd,17688
Chorley Borough Council,http://statistics.data.gov.uk/id/local-authority/30UE,Service Management & Support,1009,Streetscene & Leisure Contracts,External Contractor,40198,Miscellaneous Expenses,5034,Carryout tree works at ADDRESS REDACTED,15/05/2013,88510,130.00,Revenue,Treescape North West Ltd,17688
Chorley Borough Council,http://statistics.data.gov.uk/id/local-authority/30UE,Service Management & Support,1009,Streetscene & Leisure Contracts,External Contractor,40198,Miscellaneous Expenses,5034,Carryout tree works at ADDRESS REDACTED,15/05/2013,88510,180.00,Revenue,Treescape North West Ltd,17688
Chorley Borough Council,http://statistics.data.gov.uk/id/local-authority/30UE,Service Management & Support,1009,Streetscene & Leisure Contracts,External Contractor,40198,Miscellaneous Expenses,5034,Carryout tree works at ADDRESS REDACTED,15/05/2013,88510,90.00,Revenue,Treescape North West Ltd,17688
Chorley Borough Council,http://statistics.data.gov.uk/id/local-authority/30UE,Service Management & Support,1009,Streetscene & Leisure Contracts,External Contractor,40198,Miscellaneous Expenses,5034,Carryout tree works at ADDRESS REDACTED,15/05/2013,88510,140.00,Revenue,Treescape North West Ltd,17688
Chorley Borough Council,http://statistics.data.gov.uk/id/local-authority/30UE,Service Management & Support,1009,Streetscene & Leisure Contracts,External Contractor,40198,Miscellaneous Expenses,5034,Carryout tree works at ADDRESS REDACTED,15/05/2013,88510,270.00,Revenue,Treescape North West Ltd,17688
Chorley Borough Council,http://statistics.data.gov.uk/id/local-authority/30UE,Service Management & Support,1009,Streetscene & Leisure Contracts,External Contractor,40198,Miscellaneous Expenses,5034,Carryout tree works at ADDRESS REDACTED,15/05/2013,88510,270.00,Revenue,Treescape North West Ltd,17688
Chorley Borough Council,http://statistics.data.gov.uk/id/local-authority/30UE,Service Management & Support,1009,Streetscene & Leisure Contracts,External Contractor,40198,Miscellaneous Expenses,5034,Emergency callout to tree at Tesco roundabout area as instructed,15/05/2013,88510,180.00,Revenue,Treescape North West Ltd,17688
Chorley Borough Council,http://statistics.data.gov.uk/id/local-authority/30UE,Service Management & Support,1009,Streetscene & Leisure Contracts,External Contractor,40198,Miscellaneous Expenses,5034,Carryout tree works at Chorley Cemetery (child section) as instructed,15/05/2013,88510,180.00,Revenue,Treescape North West Ltd,17688
Chorley Borough Council,http://statistics.data.gov.uk/id/local-authority/30UE,Service Management & Support,1009,Streetscene & Leisure Contracts,External Contractor,40198,Miscellaneous Expenses,5034,Carryout tree works at ADDRESS REDACTED,15/05/2013,88510,920.00,Revenue,Treescape North West Ltd,17688
Chorley Borough Council,http://statistics.data.gov.uk/id/local-authority/30UE,Service Management & Support,1009,Streetscene & Leisure Contracts,External Contractor,40198,Miscellaneous Expenses,5034,Carryout tree works at ADDRESS REDACTED,15/05/2013,88510,820.00,Revenue,Treescape North West Ltd,17688
Chorley Borough Council,http://statistics.data.gov.uk/id/local-authority/30UE,Service Management & Support,1009,Streetscene & Leisure Contracts,External Contractor,40198,Miscellaneous Expenses,5034,Carryout tree works at ADDRESS REDACTED,24/05/2013,88760,160.00,Revenue,Treescape North West Ltd,17688
Chorley Borough Council,http://statistics.data.gov.uk/id/local-authority/30UE,Service Management & Support,1009,Streetscene & Leisure Contracts,External Contractor,40198,Miscellaneous Expenses,5034,Carryout tree works at ADDRESS REDACTED,24/05/2013,88760,90.00,Revenue,Treescape North West Ltd,17688
Chorley Borough Council,http://statistics.data.gov.uk/id/local-authority/30UE,Service Management & Support,1009,Streetscene & Leisure Contracts,External Contractor,40198,Miscellaneous Expenses,5034,Carryout tree works at ADDRESS REDACTED,24/05/2013,88760,90.00,Revenue,Treescape North West Ltd,17688
Chorley Borough Council,http://statistics.data.gov.uk/id/local-authority/30UE,Service Management & Support,1009,Streetscene & Leisure Contracts,External Contractor,40198,Miscellaneous Expenses,5034,Carryout tree works at ADDRESS REDACTED,24/05/2013,88760,270.00,Revenue,Treescape North West Ltd,17688
Chorley Borough Council,http://statistics.data.gov.uk/id/local-authority/30UE,Service Management & Support,1009,Streetscene & Leisure Contracts,External Contractor,40198,Miscellaneous Expenses,5034,Remove large Sycamore at Cenotaph Astley Park Chorley at price quoted,24/05/2013,88760,820.00,Revenue,Treescape North West Ltd,17688
Chorley Borough Council,http://statistics.data.gov.uk/id/local-authority/30UE,Democratic Represent and  Mgnt,1007,Health Environment & Neighbourhoods,Sports Development Initiatives,40186,Miscellaneous Expenses,5034,The payment of 6 spaces for the over 50`s on the Small Group Pilates sessions ,24/05/2013,88721,252.00,Revenue,Truly Therapeutic LTD,59149
Chorley Borough Council,http://statistics.data.gov.uk/id/local-authority/30UE,Service Management & Support,1009,Streetscene & Leisure Contracts,Petrol,30005,Direct Transport Costs,5016,fuel April,10/05/2013,88435,564.82,Revenue,Uk Fuels Ltd,57996
Chorley Borough Council,http://statistics.data.gov.uk/id/local-authority/30UE,Democratic Represent and  Mgnt,1007,Streetscene & Leisure Contracts,Use Of Transport - Mayoral Car,30015,Transport Recharges,5017,fuls apr,10/05/2013,88435,33.37,Revenue,Uk Fuels Ltd,57996
Chorley Borough Council,http://statistics.data.gov.uk/id/local-authority/30UE,Unapportionable Central OHeads,1009,HR & Org. Development,Miscellaneous Expenses,40200,Miscellaneous Expenses,5034,Employees,22/05/2013,88750,"1,441.89",Revenue,UK Healthcare (BDHSC),17241
Chorley Borough Council,http://statistics.data.gov.uk/id/local-authority/30UE,Control Accounts,Control,HR & Org. Development,General Balances,100,Balance Sheet,Balance,Top ups,22/05/2013,88750,309.60,Revenue,UK Healthcare (BDHSC),17241
Chorley Borough Council,http://statistics.data.gov.uk/id/local-authority/30UE,Control Accounts,Control,Shared Service Arrangement,General Balances,100,Balance Sheet,Balance,Month 1 - April,01/05/2013,88292,290.00,Revenue,Unify Credit Union Ltd,55509
Chorley Borough Council,http://statistics.data.gov.uk/id/local-authority/30UE,Control Accounts,Control,Shared Service Arrangement,General Balances,100,Balance Sheet,Balance,Salary deduction - May,29/05/2013,88849,290.00,Revenue,Unify Credit Union Ltd,55509
Chorley Borough Council,http://statistics.data.gov.uk/id/local-authority/30UE,Corporate Management,1008,Streetscene & Leisure Contracts,Water - Metered Supplies,20022,Water Services,5009,Market Palce Toilets feb 13 - apr 13,10/05/2013,88430,"1,521.37",Revenue,United Utilities Water Plc,17926
Chorley Borough Council,http://statistics.data.gov.uk/id/local-authority/30UE,Unapportionable Central OHeads,1009,Governance,Water - Metered Supplies,20022,Water Services,5009,ADDRESS REDACTED jan 13 - apr 13,15/05/2013,88432,665.99,Revenue,United Utilities Water Plc,17926
Chorley Borough Council,http://statistics.data.gov.uk/id/local-authority/30UE,Capital,Capital,Streetscene & Leisure Contracts,Main Contractor,3007,Capital Expenditure,Capital,Demolition works to Clayton Brook Public House,31/05/2013,88668,"12,485.00",Capital,Vale Park Demolition Services Ltd,58975
Chorley Borough Council,http://statistics.data.gov.uk/id/local-authority/30UE,Capital,Capital,Streetscene & Leisure Contracts,Main Contractor,3007,Capital Expenditure,Capital,Demolition works to Clayton Brook Public House,31/05/2013,88668,"12,847.45",Capital,Vale Park Demolition Services Ltd,58975
Chorley Borough Council,http://statistics.data.gov.uk/id/local-authority/30UE,Unapportionable Central OHeads,1009,Governance,Fire Extinguishers,20074,Fixtures and Fittings,5010,"Inspection and service of fire extinguishers at Union Street.",17/05/2013,88340,402.66,Revenue,Walker Fire (UK) Ltd,17092
Chorley Borough Council,http://statistics.data.gov.uk/id/local-authority/30UE,Unapportionable Central OHeads,1009,Streetscene & Leisure Contracts,Fire Extinguishers,20074,Fixtures and Fittings,5010,35 units. Check  fire extinguishers,24/05/2013,88341,438.92,Revenue,Walker Fire (UK) Ltd,17092
Chorley Borough Council,http://statistics.data.gov.uk/id/local-authority/30UE,Unapportionable Central OHeads,1009,Governance,Fire Extinguishers,20074,Fixtures and Fittings,5010,Inspection and servicing of fire extinguishers at the Town Hall.,17/05/2013,88494,508.40,Revenue,Walker Fire (UK) Ltd,17092
Chorley Borough Council,http://statistics.data.gov.uk/id/local-authority/30UE,Democratic Represent and  Mgnt,1007,Streetscene & Leisure Contracts,Consultants` Fees,40077,Services,5027,Curatorial Consultant Fees April 2013 (inc. VAT),22/05/2013,88698,524.97,Revenue,Whittle and Draper Fine Art,52271
Chorley Borough Council,http://statistics.data.gov.uk/id/local-authority/30UE,Democratic Represent and  Mgnt,1007,Streetscene & Leisure Contracts,Consultants` Fees,40077,Services,5027,Batteries and laminate supplies,22/05/2013,88698,26.89,Revenue,Whittle and Draper Fine Art,52271
Chorley Borough Council,http://statistics.data.gov.uk/id/local-authority/30UE,Corporate Management,1008,Streetscene & Leisure Contracts,Vehicle Maintenance,30045,Direct Transport Costs,5016,Carryout pre MOT inspection and repairs take for annual test on MF06NYA,10/05/2013,88467,345.87,Revenue,Wrekamendid Services Ltd,21188
Chorley Borough Council,http://statistics.data.gov.uk/id/local-authority/30UE,Corporate Management,1008,Streetscene & Leisure Contracts,Vehicle Maintenance,30045,Direct Transport Costs,5016,mot,10/05/2013,88467,30.00,Revenue,Wrekamendid Services Ltd,21188
Chorley Borough Council,http://statistics.data.gov.uk/id/local-authority/30UE,Corporate Management,1008,Streetscene & Leisure Contracts,Vehicle Maintenance,30045,Direct Transport Costs,5016,Carryout pre MOT inspection and repairs take for annual test on MA06EEH as required,10/05/2013,88469,397.47,Revenue,Wrekamendid Services Ltd,21188
Chorley Borough Council,http://statistics.data.gov.uk/id/local-authority/30UE,Corporate Management,1008,Streetscene & Leisure Contracts,Vehicle Maintenance,30045,Direct Transport Costs,5016,MOT,10/05/2013,88469,30.00,Revenue,Wrekamendid Services Ltd,21188
Chorley Borough Council,http://statistics.data.gov.uk/id/local-authority/30UE,Homelessness,1075,"Customer, ICT & Transactional",Computer Equipment-Purchase,40098,Communication and Computing,5028,3 x iPad with Retina display with Wi-Fi 16GB � Black (MD510B/A),17/05/2013,88596,930.75,Revenue,XMA Ltd,19925
Chorley Borough Council,http://statistics.data.gov.uk/id/local-authority/30UE,Unapportionable Central OHeads,1009,"Customer, ICT & Transactional",Computer Equipment-Purchase,40098,Communication and Computing,5028,3 x iPad with Retina display with Wi-Fi + Cellular 16GB � Black (MD522B/A),17/05/2013,88596,"1,137.00",Revenue,XMA Ltd,19925
Chorley Borough Council,http://statistics.data.gov.uk/id/local-authority/30UE,Corporate Management,1008,Streetscene & Leisure Contracts,Other Contributions,40145,Grants and Subscriptions,5031,Transort services provided under Warm Homes Healthy People scheme 2012-13,10/05/2013,88434,352.40,Revenue,Yellow Cabs (North West Ltd),52276
Chorley Borough Council,http://statistics.data.gov.uk/id/local-authority/30UE,Capital,Capital,Streetscene & Leisure Contracts,Surveyors Fees,3021,Capital Expenditure,Capital,Provision of  Pre-Contract services including Preparing Tender Documents ,10/05/2013,88465,"1,475.00",Capital,Youdan Briggs Limited,55653
